{"text_format":"1","workbook":"xlsx","n_sheets":23,"sheets":["Cover Page","Contents","Facility Info","Operational Data","Operational Summary","Perf. Form 1","Energy Form 1","Permit Compliance","Improvements","Public Liasion","CO2 N2O","Residue Quality ","Water","Air (periodic)","Air (CEMS)","HCl","SO2","NOx","TOC","Particulates","CO 0.5 hourly","CO 95% 10 min","NH3"],"not_rendered":{"charts":8,"images":3,"macros":1,"external_links":1,"defined_names":23,"comments":0,"pivot_tables":0},"unopened":[],"bounds":{"document_bytes":16777216,"sheet_cells":100000,"rows_first":2000,"rows_last":500,"rows_between":2000,"halvings":0,"cell_chars":16384,"cell_head_chars":4096},"cells_cut":0,"cells_raw":0,"read":"whole","date_system":"1900"}

{"sheet":"Cover Page","index":0,"n_rows":53,"n_cols":14,"rows_kept":53,"cut":false,"hidden":false,"merged":[[13,13,18,15],[34,1,34,8],[0,3,5,6],[7,1,23,8],[28,1,28,8],[30,1,30,8],[32,1,32,8],[48,2,48,3],[48,6,48,8],[52,2,52,3],[36,1,36,8],[40,2,40,8],[42,2,42,4],[44,2,44,4],[46,2,46,3],[46,6,46,8]]}
[null,null,null,"Add company logo"]
[null,null,null,null,null,null,null,null,null,null,null,null,null,"Version 23.4a (for incinerators) - 15/11/2023"]
[]
[null,null,null,null,null,null,null,null,null,null,null,null,null,"Note that there is another version of this template available for co-incinerators"]
[]
[]
[]
[null,"Add photo"]
[]
[]
[]
[]
[null,null,null,null,null,null,null,null,null,null,null,null,null,"Notes:"]
[null,null,null,null,null,null,null,null,null,null,null,null,null,"This template may require adjustments by individual operators to meet specific reporting requirements as defined in the site Permit(s)"]
[]
[]
[]
[]
[]
[]
[]
[]
[]
[]
[]
[]
[]
[]
[null,"Annual Performance Report 2023"]
[]
[null,"Permit EPR/EP3034SN"]
[]
[null,"Eastcroft Energy from Waste Plant"]
[]
[]
[]
[null,"WasteNotts (Reclamation) Limited"]
[]
[null,"Year:",2023]
[]
[null,"Address:","Incinerator Road, Off Cattle Market Road, Nottingham NG23JH"]
[]
[null,"Tel: ","0115 9869505"]
[]
[null,"Email: ","leigh.hornsby@fccenvironment.co.uk"]
[]
[null,"Prepared by:","Leigh Hornsby",null,null,"Position:","Environment Manager"]
[]
[null,"Approved by:","Ashley Corke",null,null,"Position:","General Manager"]
[]
[null,"Version:",1]
[]
[null,"Issue Date:","2024-01-31"]

{"sheet":"Contents","index":1,"n_rows":45,"n_cols":11,"rows_kept":45,"cut":false,"hidden":false,"merged":[[4,10,7,14],[8,1,8,6],[3,1,3,6],[4,1,4,6],[5,1,5,6],[6,1,6,6],[7,1,7,6],[21,1,21,6],[9,1,9,6],[10,1,10,6],[11,1,11,6],[13,1,13,6],[14,1,14,6],[15,1,15,6],[16,1,16,6],[17,1,17,6],[18,1,18,6],[19,1,19,6],[20,1,20,6],[12,1,12,6],[36,1,36,6],[22,1,22,6],[23,1,23,6],[24,1,24,6],[27,1,27,6],[28,1,28,6],[29,1,29,6],[30,1,30,6],[31,1,31,6],[32,1,32,6],[35,1,35,6],[44,0,47,9],[37,1,37,6],[38,1,38,6],[39,1,39,6],[40,1,40,6],[41,1,41,6],[42,1,42,6]]}
[{"$f":"+'Cover Page'!$B$29","v":"Annual Performance Report 2023"},null,null,null,{"$f":"+'Cover Page'!$B$33","v":"Eastcroft Energy from Waste Plant"}]
[]
["Contents",null,null,null,null,null,null,null,null,null,"Notes:"]
["Section","Subject",null,null,null,null,null,"Page ",null,null,"Section references and Page nos. to be inserted"]
[null,"Facility Information",null,null,null,null,null,null,null,null,"Sections and Subjects may require adjustment by individual operators to meet specific reporting requirements as defined in the sites Permit(s)"]
[null,"Operational Data"]
[null,"Operational Summary"]
[null,"Performance Form 1"]
[null,"Energy Form 1"]
[null,"Permit Compliance"]
[null,"Improvements"]
[null,"Public Liasion"]
[null,"Carbon dioxide and nitrous oxide emissions"]
[null,"Residue Quality "]
[null,"Emissions to Water"]
[null,"Emissions to Air (periodically monitored)"]
[null,"Emissions to Air (continuously monitored)"]
[null,"Hydrogen Chloride emissions"]
[null,"Sulphur Dioxdie emsissions"]
[null,"Oxides of Notrigen emissions"]
[null,"Total Organic Carbon emissions"]
[null,"Particulate Matter emissions"]
[null,"Carbon Monoxide emissions"]
[null,"Ammonia emissions"]
[]
[]
["Version Control"]
["Section","Information",null,null,null,null,null,"Date"]
[]
[]
[]
[]
[]
[]
["Distribution"]
["Copy","Name, Role",null,null,null,null,null,"No."]
[]
[]
[]
[]
[]
[]
[]
[]
["This report is required under the Industrial Emissions Directive’s Article 55(2) requirements on reporting and public information on waste incineration plants and co-incineration plants, which require the operator to produce an annual report on the functioning and monitoring of the plant and make it available to the public. "]

{"sheet":"Facility Info","index":2,"n_rows":22,"n_cols":11,"rows_kept":22,"cut":false,"hidden":false,"merged":[[4,0,17,8],[21,0,53,8],[4,10,13,13],[21,10,30,13]]}
[{"$f":"+'Cover Page'!$B$29","v":"Annual Performance Report 2023"},null,null,null,{"$f":"+'Cover Page'!$B$33","v":"Eastcroft Energy from Waste Plant"}]
[]
["Plant Description and Design",null,null,null,null,null,null,null,null,null,"Notes:"]
[]
["The EfW facility currently comprises two incineration streams each capable of burning up to 11.7 tonnes/hour of municipal and light commercial and industrial waste. The plant has a theoretical capacity of just over 200,000 tonnes per annum; however with planned maintenance the annual throughput is approximately 185,000 tonnes. The site has planning permission to add a third line to the plant which is included in the scope of the Environmental Permit (EP3034SN) but has yet to be developed. \n\nThe facility generates around 50 tonnes of steam per hour with no electrical generation undertaken at the \nEastcroft facility. Steam is exported to a third party (Nottingham City Council, formerly EnviroEnergy) who operate a combined heat and power facility providing electricity and feeding into Nottingham's district heating network.\n",null,null,null,null,null,null,null,null,null,"Include summary of plant design, design capacity, no. of combustion lines, electrical and heat capacity and any other general information that descibes the facility, its location and purpose "]
[]
[]
[]
[]
[]
[]
[]
[]
[]
[]
[]
[]
[]
[]
["Summary of Operational Processes and Procedures"]
[]
["Municipal waste and non-hazardous commercial/industrial/trade waste is delivered to site by lorry and tipped into one of two refuse bunkers inside the tipping hall. Deliveries are typically made from Monday to Saturday morning. Waste is transferred from the bunkers by grab crane into the feed chute of each incinerator stream. Waste is only fed to the incinerator if the temperature is above 850°C. \n\nEach incinerator stream has a moving grate on which the waste is burned, with preheated air being injected from below the grate. Combustion air is drawn from the tipping hall and boiler hall to reduce odours and dust levels in these areas and fed to the furnace via an air preheater which can raise the temperature of the air up to 160°C. Two auxiliary burners, fired on gas oil, are installed halfway up each combustion chamber to maintain temperatures above the 850°C threshold. The auxiliary burners are also used to pre-heat the incinerators before start up.\n\nAmmonium hydroxide is injected into the furnaces to reduce emissions of nitrogen oxides (this technique is known as selective non-catalytic reduction or SNCR). Hot gases from the combustion chamber pass to a boiler in which steam is raised and sent to the London Road Heat Station (operated by Nottingham City Council, formerly EnviroEnergy) for supply of heat to the district heating system and generation of electricity. Flue gases leaving the boiler are cooled to about 130°C in the economiser to achieve the correct temperature for gas treatment. \n\nIncinerator bottom ash is quenched in water and collected in a residuals bunker inside the building. The silo is emptied regularly and the bottom ash is sent for metal extraction and use as a substitute aggregate. \n\nFly ash entrained within the incinerator exhaust gases, together with any accumulations of dust removed from the walls of the economiser by the shot cleaning system, is treated in the air pollution control equipment. Each incinerator stream has its own dedicated air pollution control equipment. Cooled flue gases leaving the economiser are dosed with a mixture of hydrated lime, activated carbon and recirculated reagent, in order to reduce acid gases (by reaction with the lime), and other substances such as heavy metals and hydrocarbons (by adsorption onto the activated carbon). The exhaust gases and reagent particles are then filtered in a four compartment fabric filter to remove the dust burden. The fabric filters are regularly cleaned by reverse jet pulses, and the collected end product is stored in the APC residue silo. The APC residue silo is regularly emptied and the residue used to treat industrial acidic wastes before final disposal in a suitably licensed landfill site. \n\nThe treated exhaust gases from both streams are discharged via the 91m high stack. The final emissions from the municipal waste incinerator are continuously monitored for particulate matter, sulphur dioxide, nitrogen oxides, carbon monoxide, hydrogen chloride, volatile organic compounds, nitrous oxide, carbon dioxide and ammonia prior to entry into the main stack.\n",null,null,null,null,null,null,null,null,null,"Include summary of key processes and procedures such as (but not limited to); waste reception, control rooms, grate, bed and bolier, energy & heat  generation, cooling systems, residue management, emission controls, health and safety systems, maintenance"]

{"sheet":"Operational Data","index":3,"n_rows":65,"n_cols":10,"rows_kept":65,"cut":false,"hidden":false,"merged":[[5,9,7,9],[52,0,56,0],[33,1,38,1],[3,1,3,2],[7,1,19,1],[23,1,26,1],[28,1,29,1],[9,9,20,9],[21,9,25,9]]}
[{"$f":"+'Cover Page'!$B$29","v":"Annual Performance Report 2023"},null,null,null,{"$f":"+'Cover Page'!$B$33","v":"Eastcroft Energy from Waste Plant"}]
[]
["Operational Data"]
["Plant Size",null,null,"tonnes pa",null,"MWth",null,"MWe",null,"Notes:"]
["No. of combustion lines",1,null,"No. of Turbines:",null,1,null,null,null,"* - RDF to include SRF "]
[null,null,null,null,null,null,null,null,null,"** - Combusted tonnage = tonnes delivered in period + (tonnes in bunker at start of period – tonnes in bunker at end of period), or equivalent calculation depending on plant type"]
["Waste types received","Unit","Q1","Q2","Q3","Q4","Year Total","%"]
["Household / Local Authority","tonnes",44779.24,36317.599999999999,37939.46,45591.360000000001,{"$f":"SUM(C8:F8)","v":164627.65999999997},{"$f":"IF(G8>0,G8/$G$18,\"-\")","v":0.88850134575083284}]
["Commercial & Industrial ",null,6078.579999999999,4755.3000000000011,4792.68,5032.6799999999994,{"$f":"SUM(C9:F9)","v":20659.240000000002},0.11149865424916712,null,"*** - CHP plants only"]
["Hazardous ",null,null,null,null,null,0,"-",null,"**** Availability Definition: 'the availability of a line is to be calculated by the number of hours the line reported Continuously Monitored emission levels to the Regulator through the calendar year divided by the total number of hours in that year. \n\nThe overall plant availability is calculated as the Mean of all lines in the plant. For clarity this includes periods of abnormal operation.'  \n\nRationale: The primary function of an Energy from Waste facility is the disposal of waste. It follows therefore that the availability of a plant is determined by the period of time a facility spends undertaking this activity."]
["Clinical",null,null,null,null,null,0,"-"]
["Waste wood (biomass) ",null,null,null,null,null,0,"-"]
["Refuse Derived Fuel * - H'hold/LA",null,null,null,null,null,{"$f":"SUM(C13:F13)","v":0},"-"]
["Refuse Derived Fuel *  - C&I",null,null,null,null,null,0,"-"]
["Other [Please specify]",null,null,null,null,null,0,"-"]
["Other [Please specify]",null,null,null,null,null,0,"-"]
["Other [Please specify]",null,null,null,null,null,0,"-"]
["Total waste received",null,{"$f":"SUM(C8:C17)","v":50857.82},{"$f":"SUM(D8:D17)","v":41072.9},{"$f":"SUM(E8:E17)","v":42732.14},{"$f":"SUM(F8:F17)","v":50624.04},185286.9]
["Rejected Waste ",null,null,null,null,null,{"$f":"SUM(C19:F19)","v":0},{"$f":"IF(G19>0,G19/$G$18,\"-\")","v":"-"}]
["Unprocessed waste transferred out",null,null,null,null,null,{"$f":"SUM(C20:F20)","v":0},{"$f":"IF(G20>0,G20/$G$18,\"-\")","v":"-"}]
["Total waste combusted **",null,50364,41534,43196,50676,{"$f":"SUM(C21:F21)","v":185770}]
[null,null,null,null,null,null,null,null,null,"Password for protected cells\nA password has been set to prevent accidental  editing of cells with formulae. \nIf you still need to make an edit for some reason then the password = 1234"]
["Energy Usage / Export","Unit","Q1","Q2","Q3","Q4","Year Total","KWh/te"]
["Power Generated","MWh",null,null,null,null,{"$f":"SUM(C24:F24)","v":0},{"$f":"IF(G24>0,G24*1000/$G$21,\"-\")","v":"-"}]
["Power Exported",null,null,null,null,null,{"$f":"SUM(C25:F25)","v":0},{"$f":"IF(G25>0,G25*1000/$G$21,\"-\")","v":"-"}]
["Power Used on site",null,2607.73,2160.5839999999998,2252.8620000000001,2883.5509999999999,{"$f":"SUM(C26:F26)","v":9904.7270000000008},{"$f":"IF(G26>0,G26*1000/$G$21,\"-\")","v":53.317150239543523}]
["Power Imported",null,2607.73,2160.5839999999998,2252.8620000000001,2883.5509999999999,9904.7270000000008,{"$f":"IF(G27>0,G27*1000/$G$21,\"-\")","v":53.317150239543523}]
["Parasitic Load","%",{"$f":"IF(C24>0,1-C25/(C24+C27),\"-\")","v":"-"},{"$f":"IF(D24>0,1-D25/(D24+D27),\"-\")","v":"-"},{"$f":"IF(E24>0,1-E25/(E24+E27),\"-\")","v":"-"},{"$f":"IF(F24>0,1-F25/(F24+F27),\"-\")","v":"-"},{"$f":"IF(G24>0,1-G25/(G24+G27),\"-\")","v":"-"}]
["Thermal Energy Produced ***","MWh",99232,81928,85056,99863,{"$f":"SUM(C29:F29)","v":366079},{"$f":"IF(G29>0,G29*1000/$G$21,\"-\")","v":1970.603434354309}]
["Thermal Energy Exported ***",null,99232,81928,85056,99863,366079,{"$f":"IF(G30>0,G30*1000/$G$21,\"-\")","v":1970.603434354309}]
["R1 value (if applicable)","R1"]
[]
["Waste Disposal & Recovery","Unit","Q1","Q2","Q3","Q4","Year Total","% inputs"]
["APC Residues - produced","tonnes",1209.3000000000002,889.56,947.34000000000015,1292.0999999999999,{"$f":"SUM(C34:F34)","v":4338.3},{"$f":"IF(G34>0,G34/$G$21,\"-\")","v":2.3353071001776391E-2}]
["IBA - produced",null,9376.1200000000008,8173.1399999999994,8166.6200000000008,9683.880000000001,35399.760000000009,{"$f":"IF(G35>0,G35/$G$21,\"-\")","v":0.19055692523012333}]
["Metals recycling",null,1368.9116291343646,1114.9583151437369,1169.5192223740808,1425.5682387828811,{"$f":"SUM(C36:F36)","v":5078.9574054350633},2.734003017405966E-2]
["Other",null,0,0,0,0,{"$f":"SUM(C37:F37)","v":0},"-"]
["Other",null,0,0,0,0,0,"-"]
["Other",null,0,0,0,0,0,"-"]
[]
["Raw Material Usage","Unit","Q1","Q2","Q3","Q4","Year Total","kg or Ltr /te"]
["Mains Water","ltrs",2773,3347,5863,4891,{"$f":"SUM(C42:F42)","v":16874},{"$f":"IF(G42>0,G42/$G$21,\"-\")","v":9.0832750174947519E-2}]
["Other Water","ltrs","N/A","N/A","N/A","N/A",0,{"$f":"IF(G43>0,G43/$G$21,\"-\")","v":"-"}]
["Ammonia","kgs",130233,109584,100605,128681,469103,2.5251816762663508]
["Urea","kgs","N/A","N/A","N/A","N/A",{"$f":"SUM(C45:F45)","v":0},"-"]
["Activated Carbon","kgs",258840,229800,248159.99999999997,373440,1110240,5.9764224578780212]
["Lime / hydrated lime","kgs",63661.810531874034,44819.797027777779,48146.723118279566,61819.992485296258,218448.32316322764,1.175907429419323]
["Fuel oil","ltrs",17196,19121,56819,45561,138697,0.74660601819454164]
["Gas","cuf","N/A","N/A","N/A","N/A",0]
["Other",null,"N/A","N/A","N/A","N/A",0]
[]
["Summary ","Line/Unit","Q1","Q2","Q3","Q4","Year Total",null,"Hrs in year "]
["Availability of waste combustion by line, hrs ****",{"$f":"+B5","v":1},2129.5,1758.17,1820,2145,{"$f":"SUM(C53:F53)","v":7852.67},{"$f":"+G53/$I$53","v":0.8964235159817352},8760]
[null,2,2108,1767,1885.2,2184,7944.2,{"$f":"+G54/$I$53","v":0.90687214611872147}]
[null,3,null,null,null,null,0,0]
[null,4,null,null,null,null,0,0]
[null,5,null,null,null,null,{"$f":"SUM(C57:F57)","v":0},0]
["Overall Availability, mean avg. of all lines, hrs",null,4237.5,3525.17,3705.2,4329,{"$f":"AVERAGE(G53:G54)","v":7898.4349999999995},0.90164783105022828]
["Hours of turbine operations, hrs",1,null,null,null,null,0,0]
["Hours of turbine operations, hrs",2,null,null,null,null,0,0]
["Hours of heat / steam export",null,4237.5,3525.17,3705.2,4329,15796.869999999999,{"$f":"IF(B61>0,G60/I53,\"n/a\")","v":"n/a"}]
["Net Calorific Value of waste","MJ/kg",8.5,8.3000000000000007,7,7.9]
["Abnormal Events","qty.",null,null,null,null,0,{"$f":"IF(G63>0,\"yes\",\"no\")","v":"no"}]
["Abnormal operation","hours",null,null,null,null,0,{"$f":"+(G64)/I53","v":0}]
["Permit Breaches","qty.",null,2,1,6,9,{"$f":"IF(G65>0,\"yes\",\"no\")","v":"yes"}]

{"sheet":"Operational Summary","index":4,"n_rows":31,"n_cols":11,"rows_kept":31,"cut":false,"hidden":false,"merged":[[4,0,26,8],[30,0,51,8],[4,10,13,13],[30,10,39,13]]}
[{"$f":"+'Cover Page'!$B$29","v":"Annual Performance Report 2023"},null,null,null,{"$f":"+'Cover Page'!$B$33","v":"Eastcroft Energy from Waste Plant"}]
[]
["Summary of Plant Operations and Maintenance during the reporting year",null,null,null,null,null,null,null,null,null,"Notes:"]
[]
["During 2023 the facility ran for 15,797 hours across the 2 lines representing an availability of 90.2% with 185,287 tonnes delivered to site compared to a permit limit of 200,000 tonnes per annum. Nearly all of this waste was delivered by the local authorities of Nottingham and the surrounding area and most other wastes being categorised as municipal (Chapter 20 of the List of Wastes Regulations). \n\nThe facility submitted 9 schedule notification during the year. Gas cylinder explosions caused minor TOC exceedances  two of which were in May, one in November and three in December. In August a brief spike of HCl caused an exceedance of 71.2 mg/Nm3 against a threshold of 60. In October an electrical fault cased the FGT bypass to open for six minutes and the FGT bypass was subsequently welded shut to prevent a reoccurrence. In December a brief spike of SO2 caused an exceedance of 233.8 mg/Nm3 against a threshold of 200.\n\nThe plant provided 366 GWh of energy in the form of steam and hot water to the Nottingham City Council (formerly EnviroEnergy) facility who operate a combined heat and power station, providing electricity to private customers, the national grid and providing heating to households and commercial premises through their district heating system. Eastcroft receives all electrical supply and water for the process from the Nottingham City Council facility. \n\nThe main period of downtime related to a planned maintenance period within where both routine maintenance that cannot be undertaken whilst the plant is operational took place including the replacement of a feeder table and clinker roller and superheater parts on both lines. Further modifications and optimisation to the combustion and other processes were undertaken throughout the year.",null,null,null,null,null,null,null,null,null,"Include summary of key operational and/or mainteanance activity undertaken in the year, such as any major component upgrades and/or replacements "]
[]
[]
[]
[]
[]
[]
[]
[]
[]
[]
[]
[]
[]
[]
[]
[]
[]
[]
[]
[]
[]
[]
[]
["Summary of Residue Handling for the reporting year"]
[]
["Incinerator Bottom Ash (IBA) is sampled 4 times per year for permit compliance purposes, in particular for Total Organic Content where the permit has a limit of 3%. Full compliance was achieved during 2023; no values were above 3% with an average value of 0.93% achieved. \n\nAdditional testing of IBA is undertaken in order to correctly classify the IBA. 24 samples (2 per month) were taken in 2023 to assess for any hazardous content within the IBA. During 2023 all 24 sample results were returned confirming the classification of the IBA as non-hazardous. \n\nAll metals within the IBA are sent along with the non-hazardous IBA to a third party company who operate a permitted facility dedicated to management of bottom ash. Metals are segregated and sent for recycling while the remaining incinerator bottom ash is used as a substitute aggregate material for use within the construction industry.\n\nAir Pollution Control Residues (APCr) formed from the cleaning of the flue gases are also analysed on a quarterly basis, albeit with no limits set within the permit. The APCr is tankered to a permitted treatment site where the material is used to neutralise highly acidic wastes before the resulting residue is sent for disposal.",null,null,null,null,null,null,null,null,null,"Include in here a summary of residue handling regimes and destinations "]

{"sheet":"Perf. Form 1","index":5,"n_rows":54,"n_cols":10,"rows_kept":54,"cut":false,"hidden":false,"merged":[[9,0,9,9],[10,0,10,1],[10,2,10,3],[10,4,10,5],[10,6,10,7],[10,8,10,9],[2,0,2,4],[2,6,2,8],[3,1,3,4],[5,3,5,4],[5,6,5,7],[8,0,8,1],[8,2,8,3],[8,4,8,5],[8,6,8,7],[8,8,8,9],[11,0,11,1],[11,2,11,3],[11,4,11,5],[11,6,11,7],[11,8,11,9],[12,0,12,1],[12,2,12,3],[12,4,12,5],[12,6,12,7],[12,8,12,9],[15,0,15,1],[15,2,15,3],[15,4,15,5],[15,6,15,7],[15,8,15,9],[16,0,16,9],[13,0,13,1],[13,2,13,3],[13,4,13,5],[13,6,13,7],[13,8,13,9],[14,0,14,3],[14,4,14,5],[14,6,14,7],[14,8,14,9],[17,0,17,1],[17,2,17,3],[17,4,17,5],[17,6,17,7],[17,8,17,9],[18,0,18,1],[18,2,18,3],[18,4,18,5],[18,6,18,7],[18,8,18,9],[19,0,19,1],[19,2,19,3],[19,4,19,5],[19,6,19,7],[19,8,19,9],[20,0,20,1],[20,2,20,3],[20,4,20,5],[20,6,20,7],[20,8,20,9],[21,0,21,1],[21,2,21,3],[21,4,21,5],[21,6,21,7],[21,8,21,9],[22,0,22,3],[22,4,22,5],[22,6,22,7],[22,8,22,9],[31,0,31,3],[31,7,31,8],[32,0,32,3],[32,4,32,5],[32,7,32,8],[33,0,33,3],[33,4,33,5],[33,7,33,8],[23,0,23,3],[23,4,23,5],[23,6,23,7],[23,8,23,9],[25,0,25,9],[26,0,28,9],[36,0,36,3],[36,4,36,5],[36,7,36,8],[37,0,37,3],[37,4,37,5],[37,7,37,8],[34,0,34,3],[34,4,34,5],[34,7,34,8],[35,0,35,3],[35,4,35,5],[35,7,35,8],[47,0,47,1],[49,0,49,9],[50,0,51,9],[38,0,38,9],[39,0,40,9],[43,0,43,1],[43,2,43,9],[45,0,45,1],[46,0,46,1]]}
[{"$f":"+'Cover Page'!C39","v":2023}," Annual Reporting Performance Form 1"]
[]
[{"$f":"+'Cover Page'!B31","v":"Permit EPR/EP3034SN"},null,null,null,null,"Operator: ","Wastenotts (Reclamation) Limited"]
["Facility:",{"$f":"+'Cover Page'!B33:I33","v":"Eastcroft Energy from Waste Plant"},null,null,null,"Form:","Performance 1"]
[]
["Reporting  Period from: ",null,null,"2023-01-01",null,"to:","2023-12-31"]
[]
[{"$f":"+A1","v":2023},"Annual Reporting of Waste Disposal and Recovery"]
["Waste Description",null,"Disposal Route(s)",null,"Disposal Tonnes",null,"Recovery Tonnes",null,"% / tonne of waste incinerated"]
["1) Hazardous Wastes"]
["APC Residues",null,"D3",null,4338,null,null,null,{"$f":"IF((E11+G11)>0,(E11+G11)/'Operational Data'!$G$21, \"-\")","v":2.335145610163105E-2}]
["IBA",null,null,null,null,null,null,null,{"$f":"IF((E12+G12)>0,(E12+G12)/'Operational Data'!$G$21, \"-\")","v":"-"}]
[null,null,null,null,null,null,null,null,{"$f":"IF((E13+G13)>0,(E13+G13)/'Operational Data'!$G$21, \"-\")","v":"-"}]
[null,null,null,null,null,null,null,null,{"$f":"IF((E14+G14)>0,(E14+G14)/'Operational Data'!$G$21, \"-\")","v":"-"}]
["Total Hazardous Waste",null,null,null,{"$f":"SUM(E11:F14)","v":4338},null,{"$f":"SUM(G11:H14)","v":0},null,{"$f":"IF((E15+G15)>0,(E15+G15)/'Operational Data'!$G$21, \"-\")","v":2.335145610163105E-2}]
[]
["2) Non-Hazardous Wastes"]
["IBA",null,"R05",null,null,null,35400,null,{"$f":"IF((E18+G18)>0,(E18+G18)/'Operational Data'!$G$21, \"-\")","v":0.19055821715023954}]
["Ferrous Metal",null,null,null,null,null,null,null,{"$f":"IF((E19+G19)>0,(E19+G19)/'Operational Data'!$G$21, \"-\")","v":"-"}]
["Process Water",null,null,null,null,null,null,null,{"$f":"IF((E20+G20)>0,(E20+G20)/'Operational Data'!$G$21, \"-\")","v":"-"}]
[null,null,null,null,null,null,null,null,{"$f":"IF((E21+G21)>0,(E21+G21)/'Operational Data'!$G$21, \"-\")","v":"-"}]
[null,null,null,null,null,null,null,null,{"$f":"IF((E22+G22)>0,(E22+G22)/'Operational Data'!$G$21, \"-\")","v":"-"}]
["Total Non-Hazardous Waste",null,null,null,{"$f":"SUM(E18:F22)","v":0},null,{"$f":"SUM(G18:H22)","v":35400},null,{"$f":"IF((E23+G23)>0,(E23+G23)/'Operational Data'!$G$21, \"-\")","v":0.19055821715023954}]
["TOTAL WASTE",null,null,null,{"$f":"+E23+E15","v":4338},null,{"$f":"+G23+G15","v":35400},null,{"$f":"IF((E24+G24)>0,(E24+G24)/'Operational Data'!$G$21, \"-\")","v":0.2139096732518706}]
[]
["Operator’s comments :"]
[]
[]
[]
[]
[{"$f":"+A1","v":2023},"Annual Reporting of Water and Other Raw Material Usage"]
["Raw Material",null,null,null,"Usage",null,"Unit","Specific Useage",null,"Unit"]
["Mains Water",null,null,null,{"$f":"+'Operational Data'!G42","v":16874},null,"m3",{"$f":"IF(E33>0,E33/'Operational Data'!$G$21,\"-\")","v":9.0832750174947519E-2},null,"m3/te"]
["Total Water",null,null,null,{"$f":"+'Operational Data'!G43+'Operational Data'!G42","v":16874},null,"m3",{"$f":"IF(E34>0,E34/'Operational Data'!$G$21,\"-\")","v":9.0832750174947519E-2},null,"m3/te"]
["Urea / Ammonia",null,null,null,{"$f":"+'Operational Data'!G44","v":469103},null,"kg",{"$f":"IF(E35>0,E35/'Operational Data'!$G$21,\"-\")","v":2.5251816762663508},null,"kg/te"]
["Activated Carbon",null,null,null,{"$f":"+'Operational Data'!G46","v":1110240},null,"kg",{"$f":"IF(E36>0,E36/'Operational Data'!$G$21,\"-\")","v":5.9764224578780212},null,"kg/te"]
["Lime / hydrated lime / Sodium Bicarb.",null,null,null,{"$f":"+'Operational Data'!G47","v":218448.32316322764},null,"kg",{"$f":"IF(E37>0,E37/'Operational Data'!$G$21,\"-\")","v":1.175907429419323},null,"kg/te"]
[]
["Operator’s comments :"]
[]
[]
[]
[{"$f":"+A31","v":2023},"Annual Reporting of other performance indicators "]
["Parameter",null,"Results by Line"]
[null,null,"A1","A2","A3","A4","A5",null,"Turbine 1","Turbine 2"]
["Operating hours for the year, hours",null,7853,7944]
["Number of periods of abnormal operation, qty."]
["Cumulative hours of abnormal operation for this year, hours"]
[]
["Operator’s comments :"]
[]
[]
[]
["Signed: ",null,null,null,null,null,"Date:"]

{"sheet":"Energy Form 1","index":6,"n_rows":29,"n_cols":7,"rows_kept":29,"cut":false,"hidden":false,"merged":[[2,6,2,8],[4,1,4,4],[6,3,6,4],[6,6,6,7],[8,0,8,2],[8,3,8,4],[8,6,8,8],[9,0,9,2],[9,3,9,4],[9,6,9,8],[10,0,10,2],[10,3,10,4],[10,6,10,8],[11,0,11,2],[11,3,11,4],[11,6,11,8],[12,0,12,2],[12,3,12,4],[12,6,12,8],[13,0,13,2],[13,3,13,4],[13,6,13,8],[14,0,14,2],[14,3,14,4],[14,6,14,8],[15,0,15,2],[15,3,15,4],[15,6,15,8],[17,0,17,8],[18,0,24,8]]}
[{"$f":"+'Cover Page'!C39","v":2023}," Annual Reporting of Energy Usage/Export"]
[]
[{"$f":"+'Cover Page'!B31","v":"Permit EPR/EP3034SN"},null,null,null,null,"Operator: ","Wastenotts (Reclamation) Limited"]
[]
["Facility:",{"$f":"+'Cover Page'!B33:I33","v":"Eastcroft Energy from Waste Plant"},null,null,null,"Form:","Energy 1"]
[]
["Reporting  Period from: ",null,null,{"$f":"+'Perf. Form 1'!D6:E6","v":"2023-01-01"},null,"to:",{"$f":"+'Perf. Form 1'!G6:H6","v":"2023-12-31"}]
[]
["Energy Source",null,null,"Energy Usage",null,"Unit","Specific Useage (KWh/tonne incinerated"]
["Electricity Produced",null,null,{"$f":"+'Operational Data'!G24","v":0},null,"MWh",{"$f":"+'Operational Data'!H24","v":"-"}]
["Electricity Imported   ",null,null,{"$f":"+'Operational Data'!G27","v":9904.7270000000008},null,"MWh",{"$f":"+'Operational Data'!H27","v":53.317150239543523}]
["Electricity Exported",null,null,{"$f":"+'Operational Data'!G25","v":0},null,"MWh",{"$f":"+'Operational Data'!H25","v":"-"}]
["Gas Oil",null,null,117.9,null,"tonnes"]
["Steam/hot water exported",null,null,{"$f":"+'Operational Data'!G30","v":366079},null,"GWh",{"$f":"+'Operational Data'!H30","v":1970.603434354309}]
[]
[]
[]
["Operator’s comments :"]
[]
[]
[]
[]
[]
[]
[]
[]
[]
[]
["Signed: ",null,null,null,null,null,"Date:"]

{"sheet":"Permit Compliance","index":7,"n_rows":39,"n_cols":12,"rows_kept":39,"cut":false,"hidden":false,"merged":[[27,1,27,3],[27,4,27,6],[27,7,27,8],[23,1,23,3],[23,4,23,6],[23,7,23,8],[24,1,24,3],[25,1,25,3],[24,4,24,6],[25,4,25,6],[24,7,24,8],[25,7,25,8],[38,4,38,8],[9,0,9,1],[9,2,9,4],[9,5,9,8],[10,0,10,1],[10,2,10,4],[10,5,10,8],[11,0,11,1],[11,2,11,4],[11,5,11,8],[12,0,12,1],[12,2,12,4],[12,5,12,8],[13,0,13,1],[13,2,13,4],[13,5,13,8],[7,0,7,1],[7,2,7,8],[8,0,8,1],[8,2,8,4],[8,5,8,8],[14,0,14,1],[14,2,14,4],[14,5,14,8],[15,0,15,1],[16,2,16,4],[16,5,16,8],[15,2,15,4],[15,5,15,8],[16,0,16,1],[19,1,19,3],[19,4,19,6],[19,7,19,9],[20,1,20,3],[20,4,20,6],[20,7,20,9],[21,1,21,3],[21,4,21,6],[21,7,21,9],[26,1,26,3],[26,4,26,6],[26,7,26,9],[22,1,22,3],[22,4,22,6],[22,7,22,8],[29,4,29,6],[37,1,37,3],[37,4,37,6],[37,7,37,9],[34,1,34,3],[34,4,34,6],[34,7,34,9],[35,1,35,3],[35,4,35,6],[35,7,35,9],[29,7,29,9],[8,11,16,11],[31,0,31,10],[18,0,18,10],[36,1,36,3],[36,4,36,6],[36,7,36,9],[32,1,32,3],[32,4,32,6],[32,7,32,9],[33,1,33,3],[33,4,33,6],[33,7,33,9],[28,1,28,3],[28,4,28,6],[28,7,28,9],[29,1,29,3]]}
[{"$f":"+'Cover Page'!$B$29","v":"Annual Performance Report 2023"},null,null,null,{"$f":"+'Cover Page'!$B$33","v":"Eastcroft Energy from Waste Plant"}]
[]
["Summary of Permit Compliance"]
[]
["Compliance with permit limits for continuously monitored pollutants"]
[]
["The plant met its emission limits as shown in the table below:"]
["Substance",null,"Percentage time compliant during operationNote 1",null,null,null,null,null,null,null,null,"Notes:"]
[null,null,"Half-hourly limit",null,null,"Daily limit",null,null,null,null,null,"Note 1: Please report to 2 decimal places, i.e. xx.xx%\n\nNote 2: Please provide a brief summary of each notification or non-compliance in the table (rather than just referring to notifications that were sent to the Regulator), including stating the value of measured result for any ELV exceedances.   \n\n"]
["Particulates",null,1,null,null,1]
["Oxides of nitrogen",null,1,null,null,1]
["Sulphur dioxide",null,0.99990000000000001,null,null,1]
["Carbon monoxide",null,"\n100.00% 95% of 10-min averages",null,null,1]
["Total organic carbon",null,0.99980000000000002,null,null,1]
["Hydrogen chloride",null,0.99990000000000001,null,null,1]
["Hydrogen fluoride",null,1,null,null,1]
[null,null,0.99990000000000001,null,null,1]
[]
["Summary of any notifications or non-compliances under the permit"]
["Date","Summary of notification or non-compliance [including Line/Reference]Note 2",null,null,"Reason ",null,null,"Measures taken to prevent reoccurrence"]
["2023-05-10","Gas cylinder explosion on line 1 grate caused a half-hourly TOC exceedance of 22.5 mg/Nm3 against a threshold of 20 mg/Nm3. ",null,null,"Gas cylinder explosion",null,null,"Additional Inspections"]
["2023-05-25","Gas cylinder explosion on line 2 grate caused a half-hourly TOC exceedance of 21.3 mg/Nm3 against a threshold of 20 mg/Nm3. ",null,null,"Gas cylinder explosion",null,null,"Staff briefing a communication with waste producers"]
["2023-08-15","Exceedance of half-hour limit value for HCl on line 1 of 71.2 mg/Nm3 against a threshold of 60 mg/Nm3",null,null,"Excess of chlorinated feedstock assumed to be PVC",null,null,"Staff briefed on ensuring full mixing of waste and inspections for excessive plastics"]
["2023-10-25","An electrical malfunction caused the baghouse bypass system to open for approximately 6 minutes",null,null,"Electrical fault",null,null,"Bypass welded shut"]
["2023-11-23","Gas cylinder explosion on line 1 grate caused a half-hourly TOC exceedance of 21.0 mg/Nm3 against a threshold of 20 mg/Nm3. ",null,null,"Gas cylinder explosion",null,null,"Customer audits"]
["2023-12-13","Gas cylinder explosion on line 2 grate caused a half-hourly TOC exceedance of 38.6 mg/Nm3 against a threshold of 20 mg/Nm3. ",null,null,"Gas cylinder explosion",null,null,"Review of waste inspection procedure"]
["2023-12-19","Gas cylinder explosion on line 2 grate caused a half-hourly TOC exceedance of 22.2 mg/Nm3 against a threshold of 20 mg/Nm3. ",null,null,"Gas cylinder explosion",null,null,"Additional waste inspections and submission of a permit variation"]
["2023-12-20","Exceedance of half-hour ELV for SO2 on line 1 of  233.8 mg/Nm3 against a threshold of 200 mg/Nm3.",null,null,"Excess loading of sulphur-bearing waste",null,null,"Additional training of control room staff and replacement of bag filters"]
["2023-12-23","Gas cylinder explosion on line 2 grate caused a half-hourly TOC exceedance of 35.9 mg/Nm3 against a threshold of 20 mg/Nm3. ",null,null,"Gas cylinder explosion",null,null,"Permit variation in accordance with the IED under way"]
[]
[]
["Summary of any complaints received and actions to taken to resolve them."]
["Date","Summary of complaint [including Line/Reference]",null,null,"Reason *",null,null,"Measures taken to prevent reoccurrence"]
[]
[]
[]
[]
[]
[null,null,null,null,"* including whether substantiated by the operator or the EA"]

{"sheet":"Improvements","index":8,"n_rows":38,"n_cols":5,"rows_kept":38,"cut":false,"hidden":false,"merged":[[37,0,37,8],[38,0,47,8],[4,0,4,8],[5,0,13,8],[15,0,15,8],[16,0,24,8],[26,0,26,8],[27,0,35,8]]}
[{"$f":"+'Cover Page'!$B$29","v":"Annual Performance Report 2023"},null,null,null,{"$f":"+'Cover Page'!$B$33","v":"Eastcroft Energy from Waste Plant"}]
[]
["Summary of Plant Improvements"]
[]
["Summary of any efficiency improvements that have been completed within the year."]
["Ongoing replacement of lighting with LED units to reduce electricity consumption."]
[]
[]
[]
[]
[]
[]
[]
[]
[]
["Summary of any permit improvement conditions that have been completed within the year and the resulting environmental benefits."]
["Reports demonstrating compliance with IC2, IC3 and IC4 were submitted prior to the deadline of 30/09/2023. Reduced daily ELVs in accordance with the BREF requirements were introduced prior to 03/12/2023. An OTNOC Management Plan using the most recent draft template provided by the Environment Agency was added to the site's Written Management System on 03/12/2023"]
[]
[]
[]
[]
[]
[]
[]
[]
[]
["Summary of any changes to the plant or operating techniques which required a variation to the permit and a summary of the resulting environmental impact."]
["No new variation was issued in 2023"]
[]
[]
[]
[]
[]
[]
[]
[]
[]
["Summary of any other improvements made to the plant or planned to be made and a summary of the resulting environmental benefits."]

{"sheet":"Public Liasion","index":9,"n_rows":29,"n_cols":5,"rows_kept":29,"cut":false,"hidden":false,"merged":[[16,0,16,1],[16,2,16,8],[5,0,5,1],[5,2,5,8],[6,0,7,1],[6,2,7,8],[8,0,9,1],[8,2,9,8],[10,0,11,1],[10,2,11,8],[12,0,13,1],[12,2,13,8],[15,0,15,8],[17,0,18,1],[17,2,18,8],[19,0,20,1],[19,2,20,8],[21,0,22,1],[21,2,22,8],[23,0,24,1],[23,2,24,8],[25,0,26,1],[25,2,26,8],[28,0,28,8]]}
[{"$f":"+'Cover Page'!$B$29","v":"Annual Performance Report 2023"},null,null,null,{"$f":"+'Cover Page'!$B$33","v":"Eastcroft Energy from Waste Plant"}]
[]
["Details of Public & Stakeholder Liasion"]
[]
["Summary of events held during the reporting year."]
["Date",null,"Description"]
["2023-05-17",null,"Community Liaison Group meeting"]
[]
["2023-08-03",null,"Community Liaison Group meeting"]
[]
[]
[]
[]
[]
[]
["List of events planned for next year"]
["Date",null,"Description"]
["2024-01-17",null,"Community Liaison Group meeting"]
[]
["2024-08-21",null,"Community Liaison Group meeting"]
[]
[]
[]
[]
[]
[]
[]
[]
["If you wish to be involved in the public liasion programme, please contact info.eastcroft@fccenvironment.co.uk 0115 9869505 or visit https://eastcroft.fccenvironment.co.uk/contact-us/ "]

{"sheet":"CO2 N2O","index":10,"n_rows":24,"n_cols":6,"rows_kept":24,"cut":false,"hidden":false,"merged":[[20,2,20,3],[23,1,23,3],[16,2,16,3],[4,0,4,3],[9,0,9,3],[17,0,17,3],[13,0,13,3],[12,0,12,1],[8,2,8,3],[11,2,11,3]]}
[{"$f":"+'Cover Page'!$B$29","v":"Annual Performance Report 2023"},null,{"$f":"+'Cover Page'!$B$33","v":"Eastcroft Energy from Waste Plant"}]
[]
["Carbon dioxide emissions and biogenic content of waste inputs",null,null,null,null,"Notes:"]
[]
["Carbon dioxide emissions (all types of plant)"]
[null,"Annual mass of carbon dioxide released","tonnes ",187040]
[null,"Annual mass of carbon dioxide released per tonne of waste burned","t CO2 / t waste ",1.0069999999999999]
[null,"Annual mass of carbon dioxide released per MWh of energy exported","t CO2 / MWh export ",0.51100000000000001]
[null,"Description of how annual carbon dioxide mass emission has been calculated. \nSee Note 1","CO2 CEMS data and flow used to calculate annual emission in tonnes for each line",null,null,"Note 1: Where available, data from CO2 CEMS should be used. \nOtherwise, only where no CEMS data is available, a suitable emissions factor should be used based on the tonnage of waste burned e.g.0.942 tCO2/t waste as per Tolvik report 2022, or other justified emissions factor  - refer to embedded Environment Agency guidance note above or updated version for suitable descriptive text."]
["Nitrous oxide emissions (only plants which use ammonia or urea to abate NOx emissions)"]
[null,"Annual mass emissions of nitrous oxide","tonnes N2O",1.2330000000000001]
[null,"Description of how annual nitrous oxide mass emission has been calculated\nSee Note 2","N2O CEMS data and flow used to calculate annual emission in tonnes for each line",null,null,"Note 2: Where available, data from N2O CEMS should be used. \nIf no CEMS data is available, from periodic monitoring. Otherwise, a suitable emissions factor should be used based on the tonnage of waste burned e.g. 0.0981 kgN20/t waste as per 2021 Pollution Inventory data for plants with urea-based SNCR - refer to embedded Environment Agency guidance note above or updated version for suitable descriptive text."]
["Total annual carbon dioxide and nitrous oxide emissions. \nSee Note 3. ",null,"tonnes CO2e",187407,null,"Note 3: Total annual carbon dioxide and nitrous oxide emissions reported as carbon dioxide equivalent where 1 tonne nitrous oxide is equivalent to 298 tonne carbon dioxide"]
["Biogenic CO2 emissions (See Note 4)",null,null,null,null,"Note 4: Only plants combusting residual municipal waste, refuse derived fuel or solid recovered fuel"]
[null,"Percentage of total carbon dioxide emissions arising from biogenic waste","%",0.51800000000000002]
[null,"No. of measurements undertaken","Number",0]
[null,"Description of how percentage biogenic carbon dioxide emissions have been measured or calculated.\nSee Note 5","Figure taken from 2017 WRAP data",null,null,"Note 5: Examples include direct measurement via C14 method or BIOMA software - refer to embedded Environment Agency guidance note above or updated version for suitable descriptive text, quoting standards where relevant. \nOtherwise, as an approximation (and in lieu of any more accurate metrics which may be developed in future), the measured or estimated biogenic fraction by net calorific value can be assumed to be the same as the biogenic CO2 fraction of the total CO2 emissions from the plant. "]
["Biogenic fraction of waste feedstock (See Note 4)"]
[null,"Yearly average biogenic percentage of the waste by net calorific value (NCV)","%",0.51800000000000002]
[null,"If sampling undertaken, no. of samples used to ascertain average biogenic % above","Number",0]
[null,"Description of how biogenic percentage (by NCV) has been calculated or estimated. \nSee Note 6","Figure taken from 2017 WRAP data",null,null,"Note 6: Where available, data from waste sampling should be used; otherwise, an estimated figure with justification can be used, or a figure assumed on the basis of a national average e.g. 2017 WRAP data for residual waste of 51.8% biogenic energy content - refer to embedded Environment Agency guidance note above or updated version for suitable descriptive text, quoting standards where relevant. "]
[]
[null,"Comments:"]
[null,"C14 analysis booked for 2024 so site specific figures for biogenic proportion of carbon emissions will be used moving forward"]

{"sheet":"Residue Quality ","index":11,"n_rows":35,"n_cols":6,"rows_kept":35,"cut":false,"hidden":false,"merged":[[16,0,17,1],[16,2,17,6],[18,0,19,1],[18,2,19,6],[12,0,12,6],[13,0,13,1],[13,2,13,6],[5,0,6,6],[7,0,8,6],[9,0,10,6],[14,0,15,1],[14,2,15,6],[20,0,21,1],[20,2,21,6],[22,0,23,1],[22,2,23,6],[31,3,31,4],[27,2,28,2],[28,3,28,4],[28,5,28,6],[27,3,27,6],[26,0,26,6],[35,0,40,6],[32,3,32,4],[34,0,34,6],[27,0,28,1],[29,0,29,1],[30,0,30,1],[31,0,31,1],[32,0,32,1],[29,3,29,4],[30,3,30,4],[29,5,29,6],[30,5,30,6],[31,5,31,6],[32,5,32,6]]}
[{"$f":"+'Cover Page'!$B$29","v":"Annual Performance Report 2023"},null,null,null,{"$f":"+'Cover Page'!$B$33","v":"Eastcroft Energy from Waste Plant"}]
[]
["Residue Quality Monitoring Requirements"]
[]
["Summary of monitoring undertaken and compliance"]
["Monitoring of residues for permit compliance was undertaken with full compliance to the residue limit recorded. \nNo specific events were recorded during 2023."]
[]
["All 24 samples taken and analysed as per the ESA protocol were returned demonstrating that the Incinerator Bottom Ash should be classified as non-hazardous. "]
[]
[]
[]
[]
["Commentary on any specific events"]
["Date & Event",null,"Description"]
[]
[]
[]
[]
[]
[]
[]
[]
[]
[]
[]
[]
["Residue Quality Monitoring Results"]
["Parameter (unit) ",null,"Limit","Normal Operation "]
[null,null,null,"Bottom ash  ",null,"APC Residues"]
["Loss on Ignition (average %)",null,"<5%"]
["Total Organic Carbon (average %)",null,"<3%",0.93]
["No. of Assessments Undertaken",null,"---",24,null,4]
["No. of Hazardous Results",null,"---",0]
[]
["Comments :"]

{"sheet":"Water","index":12,"n_rows":23,"n_cols":9,"rows_kept":23,"cut":false,"hidden":false,"merged":[[5,0,6,8],[7,0,8,8],[9,0,10,8],[12,0,12,8],[13,0,13,1],[13,2,13,8],[21,0,21,8],[22,0,22,2],[22,3,22,4],[14,0,15,1],[14,2,15,8],[16,0,17,1],[16,2,17,8],[18,0,19,1],[18,2,19,8],[23,0,23,2],[23,3,23,4],[24,0,24,2],[24,3,24,4],[25,0,25,2],[25,3,25,4],[29,0,29,2],[29,3,29,4],[26,0,26,2],[26,3,26,4],[27,0,27,2],[27,3,27,4],[28,0,28,2],[28,3,28,4]]}
[{"$f":"+'Cover Page'!$B$29","v":"Annual Performance Report 2023"},null,null,null,{"$f":"+'Cover Page'!$B$33","v":"Eastcroft Energy from Waste Plant"}]
[]
["Emissions to Water"]
[]
["Summary of monitoring undertaken and compliance"]
["No monitoring required"]
[]
[]
[]
[]
[]
[]
["Commentary on any specific events"]
["Date & Event",null,"Description"]
[]
[]
[]
[]
[]
[]
[]
["Emissions to Water / Sewer"]
["Parameter",null,null,"Monitoring Frequency",null,"Limit","Target","Max.","Average"]

{"sheet":"Air (periodic)","index":13,"n_rows":39,"n_cols":13,"rows_kept":39,"cut":false,"hidden":false,"merged":[[5,10,8,13],[9,10,11,13],[8,0,8,9],[5,0,6,9],[11,0,11,1],[12,0,12,1],[11,3,11,4],[12,3,12,4],[9,0,10,1],[9,5,9,9],[9,3,10,4],[9,2,10,2],[16,0,16,1],[17,0,17,1],[18,0,18,1],[13,0,13,1],[14,0,14,1],[15,0,15,1],[39,0,40,9],[25,0,25,1],[26,0,26,1],[22,0,22,1],[23,0,23,1],[37,0,37,1],[27,0,27,1],[28,0,28,1],[29,0,29,1],[30,0,30,1],[31,0,31,1],[32,0,32,1],[37,3,37,4],[29,3,29,4],[30,3,30,4],[36,3,36,4],[38,0,38,9],[19,0,19,1],[20,0,20,1],[21,0,21,1],[34,3,34,4],[35,3,35,4],[33,0,33,1],[34,0,34,1],[35,0,35,1],[36,0,36,1],[24,0,24,1],[32,3,32,4],[27,3,27,4],[33,3,33,4],[19,3,19,4],[20,3,20,4],[21,3,21,4],[22,3,22,4],[23,3,23,4],[24,3,24,4],[31,3,31,4],[25,3,25,4],[26,3,26,4],[28,3,28,4],[13,10,14,12],[15,10,16,10],[15,11,16,11],[15,12,16,12],[18,3,18,4],[13,3,13,4],[14,3,14,4],[15,3,15,4],[16,3,16,4],[17,3,17,4]]}
[{"$f":"+'Cover Page'!$B$29","v":"Annual Performance Report 2023"},null,null,null,{"$f":"+'Cover Page'!$B$33","v":"Eastcroft Energy from Waste Plant"}]
[]
["Emissions to Air (periodically monitored)"]
[]
["Summary of monitoring undertaken, standards used and compliance",null,null,null,null,null,null,null,null,null,"Notes:"]
[null,null,null,null,null,null,null,null,null,null,"Template may require adjustment for any bespoke monitoring requirements of permit - please also check that all default ELV values, reference periods and the stated oxygen reference value match those for your plant, and edit if necessary!"]
[]
[]
["Results of emissions to air that are periodically monitored - oxygen reference 6% "]
["Substance",null,"Ref. Period","Emission Limit Value*",null,"Average",null,null,null,null,"User to add additional tables as necessary, depending on whether quarterly or bi-annual reporting is required for the compliance year"]
[null,null,null,null,null,"A1","A2","A3","A4","A5"]
["Hydrogen fluoride",null,"1 hr","2 mg/m3",null,{"$f":"[1]Line1!H38","v":0.1038},{"$f":"[1]Line2!H38","v":0.19400000000000001}]
["Cd and Th and their compounds",null,"0.5-8hrs","0.05 mg/m3",null,{"$f":"[1]Line1!H32","v":1.15E-3},{"$f":"[1]Line2!H32","v":1.5999999999999999E-3}]
["Hg and its compounds",null,"0.5-8hrs","0.05 mg/m3",null,{"$f":"[1]Line1!H36","v":1E-3},{"$f":"[1]Line2!H36","v":6.9499999999999998E-4},null,null,null,"* Denotes limits that were in force until 2 December 2023; from 3 December 2023 the following new limits applied (those not listed remained unchanged):"]
["Sb, As, Pb, Cr, Co, Cu, Mn, Ni, V and their compounds",null,"0.5-8hrs","0.5 mg/m3",null,{"$f":"[1]Line1!H34","v":2.5500000000000002E-2},{"$f":"[1]Line2!H34","v":0.08}]
["Dioxins & Furans (I-TEQ)",null,"6-8hrs","0.1 ng/m3",null,{"$f":"[1]Line1!H2","v":1.2999999999999999E-3},{"$f":"[1]Line2!H2","v":3.2499999999999999E-3},null,null,null,"Substance","Reference Period","Emission Limit Value"]
["PCBs (WHO-TEQ Humans / Mammals)",null,"6-8hrs","None set ng/m3",null,{"$f":"[1]Line1!H18","v":1.1999999999999999E-4},{"$f":"[1]Line2!H18","v":3.5500000000000001E-4}]
["PCBs (WHO-TEQ Fish)",null,"6-8hrs","None set ng/m3",null,{"$f":"[1]Line1!H20","v":9.5999999999999996E-6},{"$f":"[1]Line2!H20","v":2.1500000000000001E-5},null,null,null,"Hydrogen fluoride","Average of three consecutive measurements of at least 30 minutes each","1 mg/m3"]
["PCBs (WHO-TEQ Birds)",null,"6-8hrs","None set ng/m3",null,{"$f":"[1]Line1!H22","v":4.6500000000000003E-4},{"$f":"[1]Line2!H22","v":1.15E-3},null,null,null,"Cd and Th and their compounds","Average of three consecutive measurements of at least 30 minutes each","0.02 mg/m3"]
["Dioxins & Furans (WHO-TEQ Humans / Mammals)",null,"6-8hrs","None set ng/m3",null,{"$f":"[1]Line1!H4","v":1.2999999999999999E-3},{"$f":"[1]Line2!H4","v":3.0999999999999999E-3},null,null,null,"Hg and its compounds","Average of three consecutive measurements of at least 30 minutes each","0.02 mg/m3"]
["Dioxins & Furans (WHO-TEQ Fish)",null,"6-8hrs","None set ng/m3",null,{"$f":"[1]Line1!H6","v":1.4E-3},{"$f":"[1]Line2!H6","v":3.15E-3},null,null,null,"Sb, As, Pb, Cr, Co, Cu, Mn, Ni, V and their compounds","Average of three consecutive measurements of at least 30 minutes each","0.3 mg/m3"]
["Dioxins & Furans (WHO-TEQ Birds)",null,"6-8hrs","None set ng/m3",null,{"$f":"[1]Line1!H8","v":2.5999999999999999E-3},{"$f":"[1]Line2!H8","v":6.2000000000000006E-3},null,null,null,"Dioxins & Furans (I-TEQ)","6-8hrs","0.06 ng/m3"]
["Anthanthrene",null,"6-8hrs","None set µg/m3",null,{"$f":"[1]Line1!N52","v":"< 0.0018"},{"$f":"[1]Line2!N52","v":"< 0.0019"}]
["Benzo(a)anthracene",null,"6-8hrs","None set µg/m3",null,{"$f":"[1]Line1!N53","v":"< 0.0026"},{"$f":"[1]Line2!N53","v":"< 0"}]
["Benzo(a)pyrene",null,"6-8hrs","None set µg/m3",null,{"$f":"[1]Line1!N59","v":"< 0.002"},{"$f":"[1]Line2!N59","v":"< 0.0017"}]
["Benzo(b)fluoranthene",null,"6-8hrs","None set µg/m3",null,{"$f":"[1]Line1!N54","v":"< 0.0025"},{"$f":"[1]Line2!N54","v":"< 0.01"}]
["Benzo(b)naptho(2,1-d) thiophene",null,"6-8hrs","None set µg/m3",null,{"$f":"[1]Line1!N56","v":"< 0.0017"},{"$f":"[1]Line2!N56","v":"< 0.0019"}]
["Benzo(c)phenanthrene",null,"6-8hrs","None set µg/m3",null,{"$f":"[1]Line1!N57","v":"< 0.0018"},{"$f":"[1]Line2!N57","v":"< 0.0019"}]
["Benzo(ghi)perylene",null,"6-8hrs","None set µg/m3",null,{"$f":"[1]Line1!N58","v":"< 0.0041"},{"$f":"[1]Line2!N58","v":"< 0.01"}]
["Benzo(k)fluoranthene",null,"6-8hrs","None set µg/m3",null,{"$f":"[1]Line1!N55","v":"< 0.0018"},{"$f":"[1]Line2!N55","v":"< 0.0017"}]
["Cholanthrene",null,"6-8hrs","None set µg/m3",null,{"$f":"[1]Line1!N60","v":"< 0.0018"},{"$f":"[1]Line2!N60","v":"< 0.0019"}]
["Chrysene",null,"6-8hrs","None set µg/m3",null,{"$f":"[1]Line1!N61","v":"< 0.0036"},{"$f":"[1]Line2!N61","v":"< 0.01"}]
["Cyclopenta(cd)pyrene",null,"6-8hrs","None set µg/m3",null,{"$f":"[1]Line1!N62","v":"< 0.0018"},{"$f":"[1]Line2!N62","v":"< 0.0019"}]
["Dibenzo(ai)pyrene",null,"6-8hrs","None set µg/m3",null,{"$f":"[1]Line1!N64","v":"< 0.0018"},{"$f":"[1]Line2!N64","v":"< 0.0019"}]
["Dibenzo(ah)anthracene",null,"6-8hrs","None set µg/m3",null,{"$f":"[1]Line1!N63","v":"< 0.0018"},{"$f":"[1]Line2!N63","v":"< 0.0019"}]
["Fluoranthene",null,"6-8hrs","None set µg/m3",null,{"$f":"[1]Line1!N65","v":0.09},{"$f":"[1]Line2!N65","v":0.11}]
["Indeno(123-cd) pyrene",null,"6-8hrs","None set µg/m3",null,{"$f":"[1]Line1!N66","v":"< 0.0022"},{"$f":"[1]Line2!N66","v":"< 0.01"}]
["Naphthalene",null,"6-8hrs","None set µg/m3",null,{"$f":"[1]Line1!N67","v":3.88},{"$f":"[1]Line2!N67","v":0.15}]
["Comments :"]

{"sheet":"Air (CEMS)","index":14,"n_rows":29,"n_cols":16,"rows_kept":29,"cut":false,"hidden":false,"merged":[[14,13,15,13],[14,14,15,14],[14,15,15,15],[12,13,13,15],[27,0,27,12],[29,0,30,12],[13,0,14,0],[5,0,6,12],[7,0,8,12],[10,0,10,12],[11,0,12,0],[11,2,12,2],[11,1,12,1],[11,3,11,4],[11,5,11,6],[11,7,11,8],[11,9,11,10],[11,11,11,12]]}
[{"$f":"+'Cover Page'!$B$29","v":"Annual Performance Report 2023"},null,null,null,null,null,null,null,{"$f":"+'Cover Page'!$B$33","v":"Eastcroft Energy from Waste Plant"}]
[]
["Emissions to Air (continously monitored)"]
[null,null,null,null,null,null,null,null,null,null,null,null,null,"Notes:"]
["Summary of monitoring undertaken, standards used and compliance",null,null,null,null,null,null,null,null,null,null,null,null,"Template may require adjustment for any bespoke monitoring requirements of permit"]
[null,null,null,null,null,null,null,null,null,null,null,null,null,"Please check that all default ELV values match those for your plant and edit if necessary!"]
[null,null,null,null,null,null,null,null,null,null,null,null,null,"Report to 1 decimal place"]
[]
[]
[]
["Results of emissions to air that are continuously monitored (maximum and average values for each line) - oxygen reference 11%"]
["Substance","Reference Period","Emission Limit Value**","A1",null,"A2",null,"A3",null,"A4",null,"A5"]
[null,null,null,"Max.","Avg.","Max.","Avg.","Max.","Avg.","Max.","Avg.","Max.","Avg.","** Denotes limits that were in force until 2 December 2023; from 3 December 2023 the following new limits applied (those not listed remained unchanged):"]
["Oxides of nitrogen","Daily mean","200 mg/m3 ",{"$f":"[1]NOx!$O$19","v":194.3},{"$f":"[1]NOx!N19","v":158.70833333333334},{"$f":"[1]NOx!O34","v":190.9},{"$f":"[1]NOx!N34","v":160.65833333333333}]
[null,"½ hourly mean","400 mg/m3 ",{"$f":"[1]NOx!M19","v":365},{"$f":"[1]NOx!L19","v":158.63333333333333},{"$f":"[1]NOx!M34","v":346.4},{"$f":"[1]NOx!L34","v":160.74166666666665},null,null,null,null,null,null,"Substance","Reference Period","Emission Limit Value"]
["Particulates","Daily mean","10 mg/m3",{"$f":"[1]Particulates!O19","v":0.7},{"$f":"[1]Particulates!N19","v":0.30833333333333329},{"$f":"[1]Particulates!O34","v":0.9},{"$f":"[1]Particulates!N34","v":0.17500000000000002}]
[null,"½ hourly mean","30 mg/m3 ",{"$f":"[1]Particulates!M19","v":4.4000000000000004},{"$f":"[1]Particulates!L19","v":0.33333333333333326},{"$f":"[1]Particulates!M34","v":6.3},{"$f":"[1]Particulates!L34","v":0.2583333333333333},null,null,null,null,null,null,"Oxides of nitrogen","Daily mean","180 mg/m3 "]
["Total Organic Carbon ","Daily mean","10 mg/m3 ",{"$f":"[1]TOC!O19","v":2.7},{"$f":"[1]TOC!N19","v":0.62500000000000011},{"$f":"[1]TOC!O34","v":2.1},{"$f":"[1]TOC!N34","v":0.64166666666666672},null,null,null,null,null,null,"Particulates","Daily mean","5 mg/m3 "]
[null,"½ hourly mean","20 mg/m3 ",{"$f":"[1]TOC!M19","v":22.5},{"$f":"[1]TOC!L19","v":0.68333333333333324},{"$f":"[1]TOC!M34","v":38.6},{"$f":"[1]TOC!L34","v":0.67500000000000016},null,null,null,null,null,null,"Hydrogen chloride","Daily mean","8 mg/m3 "]
["Hydrogen chloride ","Daily mean","10 mg/m3 ",{"$f":"[1]HCl!O19","v":7.9},{"$f":"[1]HCl!N19","v":4.3833333333333337},{"$f":"[1]HCl!O34","v":7.8},{"$f":"[1]HCl!N34","v":5.3166666666666664},null,null,null,null,null,null,"Sulphur dioxide","Daily mean","40 mg/m3 "]
[null,"½ hourly mean","60 mg/m3 ",{"$f":"[1]HCl!M19","v":71.2},{"$f":"[1]HCl!L19","v":4.4250000000000007},{"$f":"[1]HCl!M34","v":47.8},{"$f":"[1]HCl!L34","v":5.375},null,null,null,null,null,null,"Ammonia","Daily mean","15 mg/m3 "]
["Sulphur dioxide","Daily mean","50 mg/m3 ",{"$f":"[1]SO2!O19","v":23.2},{"$f":"[1]SO2!N19","v":19.383333333333333},{"$f":"[1]SO2!O34","v":40.299999999999997},{"$f":"[1]SO2!N34","v":16.258333333333329}]
[null,"½ hourly mean","200 mg/m3 ",{"$f":"[1]SO2!M19","v":233.8},{"$f":"[1]SO2!L19","v":19.416666666666668},{"$f":"[1]SO2!M34","v":194.2},{"$f":"[1]SO2!L34","v":16.424999999999997}]
["Carbon monoxide ","Daily mean","50 mg/m3 ",{"$f":"'[1]CO 95% 10 min'!Q19","v":17},{"$f":"'[1]CO 95% 10 min'!P19","v":5.9666666666666677},{"$f":"'[1]CO 95% 10 min'!Q34","v":19},{"$f":"'[1]CO 95% 10 min'!P34","v":7.083333333333333}]
[null,"½ hourly mean *","100 mg/m3 *"]
[null,"95%ile 10-min avg *","150 mg/m3 *",{"$f":"'[1]CO 95% 10 min'!O19","v":579.70000000000005},{"$f":"'[1]CO 95% 10 min'!M19","v":150},{"$f":"'[1]CO 95% 10 min'!O34","v":657.1},{"$f":"'[1]CO 95% 10 min'!M34","v":150}]
[" Ammonia","Daily mean","No limit set until 03/12/23",{"$f":"[1]NH3!O19","v":14.4},{"$f":"[1]NH3!N19","v":1.3666666666666669},{"$f":"[1]NH3!O34","v":17.5},{"$f":"[1]NH3!N34","v":1.7750000000000001}]
["** = delete as appropriate, depending on whether your plant has half-horly or 10-min CO ELVs\n"]
["Comments :"]

{"sheet":"HCl","index":15,"n_rows":79,"n_cols":17,"rows_kept":79,"cut":false,"hidden":false,"merged":[[12,16,15,18],[51,9,63,9],[66,9,78,9],[4,9,4,14],[4,1,4,3],[4,4,4,6],[48,0,51,6],[47,0,47,6],[6,9,18,9],[21,9,33,9],[36,9,48,9],[3,16,7,18],[9,16,11,18],[18,4,18,6]]}
[{"$f":"+'Cover Page'!$B$29","v":"Annual Performance Report 2023"},null,null,null,{"$f":"+'Cover Page'!$B$33","v":"Eastcroft Energy from Waste Plant"}]
[]
["Monitoring of Hydrogen Chloride emissions",null,null,"Whole Installation",null,null,"See  Notes in Cell Q3",null,null,{"$f":"+A3","v":"Monitoring of Hydrogen Chloride emissions"},null,null,null,"Per Combustion Line",null,null,"Notes:"]
[null,null,null,null,null,null,null,null,null,null,null,null,null,null,null,null,"User to add logic to complete Whole installation, Table A5:G18. From the data in Per Combustion Line, Table J6:O79, subject to No. of lines installed"]
["mg/Nm3","1/2 Hourly Reference Periods",null,null,"Daily Reference Periods"]
[{"$f":"+'Cover Page'!C39","v":2023},"1/2 hourly HCl ELV","Monthly 1/2 hourly mean","Highest 1/2 hourly maximum","Daily HCl ELV*","Monthly daily mean","Highest daily maximum",null,null,{"$f":"+A6","v":2023},"mg/Nm3","Monthly 1/2 hourly mean","Monthly 1/2 hourly maximum","Monthly daily mean","Monthly daily maximum"]
["Jan",60,9.6000000000000014,31.2,10,9.6000000000000014,11.5,null,null,"A1","Jan",4.4000000000000004,7.8,4.4000000000000004,5.5]
["Feb",60,9.6999999999999993,37.200000000000003,10,9.6999999999999993,11.6,null,null,null,"Feb",4.4000000000000004,21.2,4.4000000000000004,5.5]
["Mar",60,9.9,25.9,10,9.9,12.2,null,null,null,"Mar",4.4000000000000004,15,4.4000000000000004,5.8,null,"Whole Installation table A5:G18:"]
["Apr",60,9.3999999999999986,39,10,9.3000000000000007,11.5,null,null,null,"Apr",4.0999999999999996,26.2,4.0999999999999996,5.3,null,"Mean: for 1/2 hourly and daily periods calculate mean of values across all operational combustion lines for the month"]
["May",60,11,29.700000000000003,10,10.9,12.5,null,null,null,"May",5.2,17.3,5.2,6.3]
["Jun",60,11.4,19.5,10,11.3,12.3,null,null,null,"Jun",5.4,7.8,5.4,5.8]
["Jul",60,9.3000000000000007,54.6,10,9,11.8,null,null,null,"Jul",3.8,11.5,3.6,4.5999999999999996,null,"Maximum: for 1/2 hourly and daily periods use the highest value across all operational combustion lines for the month"]
["Aug",60,11.7,84.5,10,11.6,14,null,null,null,"Aug",5.4,71.2,5.3,6.7]
["Sep",60,12.5,101.9,10,12.3,15.7,null,null,null,"Sep",5.7,54.1,5.6,7.9]
["Oct",60,11,23.200000000000003,10,10.899999999999999,13.100000000000001,null,null,null,"Oct",5.0999999999999996,8.4,5.0999999999999996,5.9]
["Nov",60,6.3000000000000007,12.5,10,6.1,8,null,null,null,"Nov",2.6,5.7,2.5,3.2]
["Dec",60,5.8000000000000007,22.2,8,5.8000000000000007,7.4,null,null,null,"Dec",2.6,13.1,2.6,3.5]
[null,null,null,null,"* ELV reduced to 8 mg/Nm3 on 3 December 2023",null,null,null,null,null,"Annual",4.4250000000000007,71.2,4.3833333333333337,7.9]
[]
[null,null,null,null,null,null,null,null,null,{"$f":"+A6","v":2023},"mg/Nm3","Monthly 1/2 hourly mean","Monthly 1/2 hourly maximum","Monthly daily mean","Monthly daily maximum"]
[null,null,null,null,null,null,null,null,null,"A2","Jan",5.2,23.4,5.2,6]
[null,null,null,null,null,null,null,null,null,null,"Feb",5.3,16,5.3,6.1]
[null,null,null,null,null,null,null,null,null,null,"Mar",5.5,10.9,5.5,6.4]
[null,null,null,null,null,null,null,null,null,null,"Apr",5.3,12.8,5.2,6.2]
[null,null,null,null,null,null,null,null,null,null,"May",5.8,12.4,5.7,6.2]
[null,null,null,null,null,null,null,null,null,null,"Jun",6,11.7,5.9,6.5]
[null,null,null,null,null,null,null,null,null,null,"Jul",5.5,43.1,5.4,7.2]
[null,null,null,null,null,null,null,null,null,null,"Aug",6.3,13.3,6.3,7.3]
[null,null,null,null,null,null,null,null,null,null,"Sep",6.8,47.8,6.7,7.8]
[null,null,null,null,null,null,null,null,null,null,"Oct",5.9,14.8,5.8,7.2]
[null,null,null,null,null,null,null,null,null,null,"Nov",3.7,6.8,3.6,4.8]
[null,null,null,null,null,null,null,null,null,null,"Dec",3.2,9.1,3.2,3.9]
[null,null,null,null,null,null,null,null,null,null,"Annual",5.375,47.8,5.3166666666666664,7.8]
[]
[null,null,null,null,null,null,null,null,null,{"$f":"+A6","v":2023},"mg/Nm3","Monthly 1/2 hourly mean","Monthly 1/2 hourly maximum","Monthly daily mean","Monthly daily maximum"]
[null,null,null,null,null,null,null,null,null,"A3","Jan"]
[null,null,null,null,null,null,null,null,null,null,"Feb"]
[null,null,null,null,null,null,null,null,null,null,"Mar"]
[null,null,null,null,null,null,null,null,null,null,"Apr"]
[null,null,null,null,null,null,null,null,null,null,"May"]
[null,null,null,null,null,null,null,null,null,null,"Jun"]
[null,null,null,null,null,null,null,null,null,null,"Jul"]
[null,null,null,null,null,null,null,null,null,null,"Aug"]
[null,null,null,null,null,null,null,null,null,null,"Sep"]
[null,null,null,null,null,null,null,null,null,null,"Oct"]
[null,null,null,null,null,null,null,null,null,null,"Nov"]
["Comments :",null,null,null,null,null,null,null,null,null,"Dec"]
[null,null,null,null,null,null,null,null,null,null,"Annual",{"$f":"AVERAGE(L37:L48)","v":{"$error":"#DIV/0!"}},{"$f":"MAX(M37:M48)","v":0},{"$f":"AVERAGE(N37:N48)","v":{"$error":"#DIV/0!"}},{"$f":"MAX(O37:O48)","v":0}]
[]
[null,null,null,null,null,null,null,null,null,{"$f":"+A6","v":2023},"mg/Nm3","Monthly 1/2 hourly mean","Monthly 1/2 hourly maximum","Monthly daily mean","Monthly daily maximum"]
[null,null,null,null,null,null,null,null,null,"A4","Jan"]
[null,null,null,null,null,null,null,null,null,null,"Feb"]
[null,null,null,null,null,null,null,null,null,null,"Mar"]
[null,null,null,null,null,null,null,null,null,null,"Apr"]
[null,null,null,null,null,null,null,null,null,null,"May"]
[null,null,null,null,null,null,null,null,null,null,"Jun"]
[null,null,null,null,null,null,null,null,null,null,"Jul"]
[null,null,null,null,null,null,null,null,null,null,"Aug"]
[null,null,null,null,null,null,null,null,null,null,"Sep"]
[null,null,null,null,null,null,null,null,null,null,"Oct"]
[null,null,null,null,null,null,null,null,null,null,"Nov"]
[null,null,null,null,null,null,null,null,null,null,"Dec"]
[null,null,null,null,null,null,null,null,null,null,"Annual",{"$f":"AVERAGE(L52:L63)","v":{"$error":"#DIV/0!"}},{"$f":"MAX(M52:M63)","v":0},{"$f":"AVERAGE(N52:N63)","v":{"$error":"#DIV/0!"}},{"$f":"MAX(O52:O63)","v":0}]
[]
[null,null,null,null,null,null,null,null,null,{"$f":"+A6","v":2023},"mg/Nm3","Monthly 1/2 hourly mean","Monthly 1/2 hourly maximum","Monthly daily mean","Monthly daily maximum"]
[null,null,null,null,null,null,null,null,null,"A5","Jan"]
[null,null,null,null,null,null,null,null,null,null,"Feb"]
[null,null,null,null,null,null,null,null,null,null,"Mar"]
[null,null,null,null,null,null,null,null,null,null,"Apr"]
[null,null,null,null,null,null,null,null,null,null,"May"]
[null,null,null,null,null,null,null,null,null,null,"Jun"]
[null,null,null,null,null,null,null,null,null,null,"Jul"]
[null,null,null,null,null,null,null,null,null,null,"Aug"]
[null,null,null,null,null,null,null,null,null,null,"Sep"]
[null,null,null,null,null,null,null,null,null,null,"Oct"]
[null,null,null,null,null,null,null,null,null,null,"Nov"]
[null,null,null,null,null,null,null,null,null,null,"Dec"]
[null,null,null,null,null,null,null,null,null,null,"Annual",{"$f":"AVERAGE(L67:L78)","v":{"$error":"#DIV/0!"}},{"$f":"MAX(M67:M78)","v":0},{"$f":"AVERAGE(N67:N78)","v":{"$error":"#DIV/0!"}},{"$f":"MAX(O67:O78)","v":0}]

{"sheet":"SO2","index":16,"n_rows":79,"n_cols":17,"rows_kept":79,"cut":false,"hidden":false,"merged":[[3,16,7,18],[9,16,11,18],[12,16,15,18],[66,9,78,9],[4,1,4,3],[4,4,4,6],[4,9,4,14],[6,9,18,9],[21,9,33,9],[36,9,48,9],[47,0,47,6],[48,0,51,6],[51,9,63,9],[18,4,18,6]]}
[{"$f":"+'Cover Page'!$B$29","v":"Annual Performance Report 2023"},null,null,null,{"$f":"+'Cover Page'!$B$33","v":"Eastcroft Energy from Waste Plant"}]
[]
["Monitoring of Sulphur dioxide emissions",null,null,"Whole Installation",null,null,"See  Notes in Cell Q3",null,null,{"$f":"+A3","v":"Monitoring of Sulphur dioxide emissions"},null,null,null,"Per Combustion Line",null,null,"Notes:"]
[null,null,null,null,null,null,null,null,null,null,null,null,null,null,null,null,"User to add logic to complete Whole installation, Table A5:G18. From the data in Per Combustion Line, Table J6:O79, subject to No. of lines installed"]
["mg/Nm3","1/2 Hourly Reference Periods",null,null,"Daily Reference Periods"]
[{"$f":"+'Cover Page'!C39","v":2023},"1/2 hourly SO2 ELV","Monthly 1/2 hourly mean","Highest 1/2 hourly maximum","Daily SO2 ELV*","Monthly daily mean","Highest daily maximum",null,null,{"$f":"+A6","v":2023},"mg/Nm3","Monthly 1/2 hourly mean","Monthly 1/2 hourly maximum","Monthly daily mean","Monthly daily maximum"]
["Jan",200,35.200000000000003,125.89999999999999,50,35,48.2,null,null,"A1","Jan",20,60.3,19.8,26.6]
["Feb",200,39,168.2,50,38.6,50.3,null,null,null,"Feb",22.5,94.1,22.5,26.3]
["Mar",200,41,314.29999999999995,50,40.9,56,null,null,null,"Mar",23.2,120.1,23.2,28.1,null,"Whole Installation table A5:G18:"]
["Apr",200,39.400000000000006,267.5,50,39.200000000000003,72.2,null,null,null,"Apr",23.1,122.5,23.1,38.6,null,"Mean: for 1/2 hourly and daily periods calculate mean of values across all operational combustion lines for the month"]
["May",200,29.5,322.8,50,29.5,64.599999999999994,null,null,null,"May",17.3,144.5,17.3,40.299999999999997]
["Jun",200,23.6,52.2,50,23.5,28.4,null,null,null,"Jun",13.5,24.5,13.4,14.8]
["Jul",200,38.700000000000003,158.30000000000001,50,37.9,70.8,null,null,null,"Jul",20.6,42.9,20.5,30.5,null,"Maximum: for 1/2 hourly and daily periods use the highest value across all operational combustion lines for the month"]
["Aug",200,28.5,166.1,50,28.3,44.5,null,null,null,"Aug",16.600000000000001,125.1,16.600000000000001,23.9]
["Sep",200,27.4,216.5,50,27,45.099999999999994,null,null,null,"Sep",15.3,137.6,15.1,22.9]
["Oct",200,28.799999999999997,104.4,50,28.7,42.3,null,null,null,"Oct",15.7,59.5,15.7,23.5]
["Nov",200,48.8,289.89999999999998,50,49,75,null,null,null,"Nov",22.2,141.9,22.4,39]
["Dec",200,50.2,418.3,40,50.1,72.400000000000006,null,null,null,"Dec",23,233.8,23,35.4]
[null,null,null,null,"* ELV reduced to 40 mg/Nm3 on 3 December 2023",null,null,null,null,null,"Annual",{"$f":"AVERAGE(L7:L18)","v":19.416666666666668},{"$f":"MAX(M7:M18)","v":233.8},{"$f":"AVERAGE(N7:N18)","v":19.383333333333333},{"$f":"MAX(O7:O18)","v":40.299999999999997}]
[]
[null,null,null,null,null,null,null,null,null,{"$f":"+A6","v":2023},"mg/Nm3","Monthly 1/2 hourly mean","Monthly 1/2 hourly maximum","Monthly daily mean","Monthly daily maximum"]
[null,null,null,null,null,null,null,null,null,"A2","Jan",15.2,65.599999999999994,15.2,21.6]
[null,null,null,null,null,null,null,null,null,null,"Feb",16.5,74.099999999999994,16.100000000000001,24]
[null,null,null,null,null,null,null,null,null,null,"Mar",17.8,194.2,17.7,27.9]
[null,null,null,null,null,null,null,null,null,null,"Apr",16.3,145,16.100000000000001,33.6]
[null,null,null,null,null,null,null,null,null,null,"May",12.2,178.3,12.2,24.3]
[null,null,null,null,null,null,null,null,null,null,"Jun",10.1,27.7,10.1,13.6]
[null,null,null,null,null,null,null,null,null,null,"Jul",18.100000000000001,115.4,17.399999999999999,40.299999999999997]
[null,null,null,null,null,null,null,null,null,null,"Aug",11.9,41,11.7,20.6]
[null,null,null,null,null,null,null,null,null,null,"Sep",12.1,78.900000000000006,11.9,22.2]
[null,null,null,null,null,null,null,null,null,null,"Oct",13.1,44.9,13,18.8]
[null,null,null,null,null,null,null,null,null,null,"Nov",26.6,148,26.6,36]
[null,null,null,null,null,null,null,null,null,null,"Dec",27.2,184.5,27.1,37]
[null,null,null,null,null,null,null,null,null,null,"Annual",16.424999999999997,194.2,16.258333333333329,40.299999999999997]
[]
[null,null,null,null,null,null,null,null,null,{"$f":"+A6","v":2023},"mg/Nm3","Monthly 1/2 hourly mean","Monthly 1/2 hourly maximum","Monthly daily mean","Monthly daily maximum"]
[null,null,null,null,null,null,null,null,null,"A3","Jan"]
[null,null,null,null,null,null,null,null,null,null,"Feb"]
[null,null,null,null,null,null,null,null,null,null,"Mar"]
[null,null,null,null,null,null,null,null,null,null,"Apr"]
[null,null,null,null,null,null,null,null,null,null,"May"]
[null,null,null,null,null,null,null,null,null,null,"Jun"]
[null,null,null,null,null,null,null,null,null,null,"Jul"]
[null,null,null,null,null,null,null,null,null,null,"Aug"]
[null,null,null,null,null,null,null,null,null,null,"Sep"]
[null,null,null,null,null,null,null,null,null,null,"Oct"]
[null,null,null,null,null,null,null,null,null,null,"Nov"]
["Comments :",null,null,null,null,null,null,null,null,null,"Dec"]
[null,null,null,null,null,null,null,null,null,null,"Annual",{"$f":"AVERAGE(L37:L48)","v":{"$error":"#DIV/0!"}},{"$f":"MAX(M37:M48)","v":0},{"$f":"AVERAGE(N37:N48)","v":{"$error":"#DIV/0!"}},{"$f":"MAX(O37:O48)","v":0}]
[]
[null,null,null,null,null,null,null,null,null,{"$f":"+A6","v":2023},"mg/Nm3","Monthly 1/2 hourly mean","Monthly 1/2 hourly maximum","Monthly daily mean","Monthly daily maximum"]
[null,null,null,null,null,null,null,null,null,"A4","Jan"]
[null,null,null,null,null,null,null,null,null,null,"Feb"]
[null,null,null,null,null,null,null,null,null,null,"Mar"]
[null,null,null,null,null,null,null,null,null,null,"Apr"]
[null,null,null,null,null,null,null,null,null,null,"May"]
[null,null,null,null,null,null,null,null,null,null,"Jun"]
[null,null,null,null,null,null,null,null,null,null,"Jul"]
[null,null,null,null,null,null,null,null,null,null,"Aug"]
[null,null,null,null,null,null,null,null,null,null,"Sep"]
[null,null,null,null,null,null,null,null,null,null,"Oct"]
[null,null,null,null,null,null,null,null,null,null,"Nov"]
[null,null,null,null,null,null,null,null,null,null,"Dec"]
[null,null,null,null,null,null,null,null,null,null,"Annual",{"$f":"AVERAGE(L52:L63)","v":{"$error":"#DIV/0!"}},{"$f":"MAX(M52:M63)","v":0},{"$f":"AVERAGE(N52:N63)","v":{"$error":"#DIV/0!"}},{"$f":"MAX(O52:O63)","v":0}]
[]
[null,null,null,null,null,null,null,null,null,{"$f":"+A6","v":2023},"mg/Nm3","Monthly 1/2 hourly mean","Monthly 1/2 hourly maximum","Monthly daily mean","Monthly daily maximum"]
[null,null,null,null,null,null,null,null,null,"A5","Jan"]
[null,null,null,null,null,null,null,null,null,null,"Feb"]
[null,null,null,null,null,null,null,null,null,null,"Mar"]
[null,null,null,null,null,null,null,null,null,null,"Apr"]
[null,null,null,null,null,null,null,null,null,null,"May"]
[null,null,null,null,null,null,null,null,null,null,"Jun"]
[null,null,null,null,null,null,null,null,null,null,"Jul"]
[null,null,null,null,null,null,null,null,null,null,"Aug"]
[null,null,null,null,null,null,null,null,null,null,"Sep"]
[null,null,null,null,null,null,null,null,null,null,"Oct"]
[null,null,null,null,null,null,null,null,null,null,"Nov"]
[null,null,null,null,null,null,null,null,null,null,"Dec"]
[null,null,null,null,null,null,null,null,null,null,"Annual",{"$f":"AVERAGE(L67:L78)","v":{"$error":"#DIV/0!"}},{"$f":"MAX(M67:M78)","v":0},{"$f":"AVERAGE(N67:N78)","v":{"$error":"#DIV/0!"}},{"$f":"MAX(O67:O78)","v":0}]

{"sheet":"NOx","index":17,"n_rows":79,"n_cols":17,"rows_kept":79,"cut":false,"hidden":false,"merged":[[3,16,7,18],[9,16,11,18],[12,16,15,18],[66,9,78,9],[4,1,4,3],[4,4,4,6],[4,9,4,14],[6,9,18,9],[21,9,33,9],[36,9,48,9],[47,0,47,6],[48,0,51,6],[51,9,63,9],[18,4,18,6]]}
[{"$f":"+'Cover Page'!$B$29","v":"Annual Performance Report 2023"},null,null,null,{"$f":"+'Cover Page'!$B$33","v":"Eastcroft Energy from Waste Plant"}]
[]
["Monitoring of Oxides of Nitrogen emissions",null,null,"Whole Installation",null,null,"See  Notes in Cell Q3",null,null,{"$f":"+A3","v":"Monitoring of Oxides of Nitrogen emissions"},null,null,null,"Per Combustion Line",null,null,"Notes:"]
[null,null,null,null,null,null,null,null,null,null,null,null,null,null,null,null,"User to add logic to complete Whole installation, Table A5:G18. From the data in Per Combustion Line, Table J6:O79, subject to No. of lines installed"]
["mg/Nm3","1/2 Hourly Reference Periods",null,null,"Daily Reference Periods"]
[{"$f":"+'Cover Page'!C39","v":2023},"1/2 hourly NOx ELV","Monthly 1/2 hourly mean","Highest 1/2 hourly maximum","Daily NOx ELV*","Monthly daily mean","Highest daily maximum",null,null,{"$f":"+A6","v":2023},"mg/Nm3","Monthly 1/2 hourly mean","Monthly 1/2 hourly maximum","Monthly daily mean","Monthly daily maximum"]
["Jan",400,343.6,496.4,200,343.9,372.5,null,null,"A1","Jan",{"$f":"'[1]Input Grid'!C30","v":165.7},{"$f":"'[1]Input Grid'!D30","v":249},{"$f":"'[1]Input Grid'!F30","v":166},{"$f":"'[1]Input Grid'!G30","v":185.3}]
["Feb",400,312.3,440,200,312.2,344.7,null,null,null,"Feb",{"$f":"'[1]Input Grid'!C31","v":155.30000000000001},{"$f":"'[1]Input Grid'!D31","v":216.2},{"$f":"'[1]Input Grid'!F31","v":155.19999999999999},{"$f":"'[1]Input Grid'!G31","v":168.1}]
["Mar",400,332.9,494,200,332.8,375.8,null,null,null,"Mar",{"$f":"'[1]Input Grid'!C32","v":165.8},{"$f":"'[1]Input Grid'!D32","v":253.8},{"$f":"'[1]Input Grid'!F32","v":165.8},{"$f":"'[1]Input Grid'!G32","v":184.9},null,"Whole Installation table A5:G18:"]
["Apr",400,295.89999999999998,505.5,200,295.89999999999998,337.3,null,null,null,"Apr",{"$f":"'[1]Input Grid'!C33","v":146.1},{"$f":"'[1]Input Grid'!D33","v":263.39999999999998},{"$f":"'[1]Input Grid'!F33","v":146.19999999999999},{"$f":"'[1]Input Grid'!G33","v":175.3},null,"Mean: for 1/2 hourly and daily periods calculate mean of values across all operational combustion lines for the month"]
["May",400,250.4,435.3,200,250.3,319.89999999999998,null,null,null,"May",{"$f":"'[1]Input Grid'!C34","v":121},{"$f":"'[1]Input Grid'!D34","v":213},{"$f":"'[1]Input Grid'!F34","v":121},{"$f":"'[1]Input Grid'!G34","v":157.19999999999999}]
["Jun",400,313.10000000000002,444.7,200,312.89999999999998,329.9,null,null,null,"Jun",{"$f":"'[1]Input Grid'!C35","v":154.9},{"$f":"'[1]Input Grid'!D35","v":220.6},{"$f":"'[1]Input Grid'!F35","v":154.80000000000001},{"$f":"'[1]Input Grid'!G35","v":159.69999999999999}]
["Jul",400,347.5,711.4,200,347.7,384,null,null,null,"Jul",{"$f":"'[1]Input Grid'!C36","v":175},{"$f":"'[1]Input Grid'!D36","v":365},{"$f":"'[1]Input Grid'!F36","v":175.5},{"$f":"'[1]Input Grid'!G36","v":194.3},null,"Maximum: for 1/2 hourly and daily periods use the highest value across all operational combustion lines for the month"]
["Aug",400,334.1,503.4,200,334,360.5,null,null,null,"Aug",{"$f":"'[1]Input Grid'!C37","v":166.6},{"$f":"'[1]Input Grid'!D37","v":242.7},{"$f":"'[1]Input Grid'!F37","v":166.5},{"$f":"'[1]Input Grid'!G37","v":179.8}]
["Sep",400,331.1,519.9,200,331.2,354.2,null,null,null,"Sep",{"$f":"'[1]Input Grid'!C38","v":162.80000000000001},{"$f":"'[1]Input Grid'!D38","v":268.2},{"$f":"'[1]Input Grid'!F38","v":163},{"$f":"'[1]Input Grid'!G38","v":176.5}]
["Oct",400,340.1,611.4,200,340.1,380.70000000000005,null,null,null,"Oct",{"$f":"'[1]Input Grid'!C39","v":169},{"$f":"'[1]Input Grid'!D39","v":323},{"$f":"'[1]Input Grid'!F39","v":169.1},{"$f":"'[1]Input Grid'!G39","v":190.9}]
["Nov",400,323.89999999999998,554.70000000000005,200,323.8,342,null,null,null,"Nov",{"$f":"'[1]Input Grid'!C40","v":161.4},{"$f":"'[1]Input Grid'!D40","v":286.8},{"$f":"'[1]Input Grid'!F40","v":161.4},{"$f":"'[1]Input Grid'!G40","v":168.2}]
["Dec",400,307.60000000000002,438.3,180,307.60000000000002,333.1,null,null,null,"Dec",{"$f":"'[1]Input Grid'!C41","v":160},{"$f":"'[1]Input Grid'!D41","v":237.5},{"$f":"'[1]Input Grid'!F41","v":160},{"$f":"'[1]Input Grid'!G41","v":169.2}]
[null,null,null,null,"* ELV reduced to 180 mg/Nm3 on 3 December 2023",null,null,null,null,null,"Annual",{"$f":"AVERAGE(L7:L18)","v":158.63333333333333},{"$f":"MAX(M7:M18)","v":365},{"$f":"AVERAGE(N7:N18)","v":158.70833333333334},{"$f":"MAX(O7:O18)","v":194.3}]
[]
[null,null,null,null,null,null,null,null,null,{"$f":"+A6","v":2023},"mg/Nm3","Monthly 1/2 hourly mean","Monthly 1/2 hourly maximum","Monthly daily mean","Monthly daily maximum"]
[null,null,null,null,null,null,null,null,null,"A2","Jan",177.9,247.4,177.9,187.2]
[null,null,null,null,null,null,null,null,null,null,"Feb",157,223.8,157,176.6]
[null,null,null,null,null,null,null,null,null,null,"Mar",167.1,240.2,167,190.9]
[null,null,null,null,null,null,null,null,null,null,"Apr",149.80000000000001,242.1,149.69999999999999,162]
[null,null,null,null,null,null,null,null,null,null,"May",129.4,222.3,129.30000000000001,162.69999999999999]
[null,null,null,null,null,null,null,null,null,null,"Jun",158.19999999999999,224.1,158.1,170.2]
[null,null,null,null,null,null,null,null,null,null,"Jul",172.5,346.4,172.2,189.7]
[null,null,null,null,null,null,null,null,null,null,"Aug",167.5,260.7,167.5,180.7]
[null,null,null,null,null,null,null,null,null,null,"Sep",168.3,251.7,168.2,177.7]
[null,null,null,null,null,null,null,null,null,null,"Oct",171.1,288.39999999999998,171,189.8]
[null,null,null,null,null,null,null,null,null,null,"Nov",162.5,267.89999999999998,162.4,173.8]
[null,null,null,null,null,null,null,null,null,null,"Dec",147.6,200.8,147.6,163.9]
[null,null,null,null,null,null,null,null,null,null,"Annual",{"$f":"AVERAGE(L22:L33)","v":160.74166666666665},{"$f":"MAX(M22:M33)","v":346.4},{"$f":"AVERAGE(N22:N33)","v":160.65833333333333},{"$f":"MAX(O22:O33)","v":190.9}]
[]
[null,null,null,null,null,null,null,null,null,{"$f":"+A6","v":2023},"mg/Nm3","Monthly 1/2 hourly mean","Monthly 1/2 hourly maximum","Monthly daily mean","Monthly daily maximum"]
[null,null,null,null,null,null,null,null,null,"A3","Jan"]
[null,null,null,null,null,null,null,null,null,null,"Feb"]
[null,null,null,null,null,null,null,null,null,null,"Mar"]
[null,null,null,null,null,null,null,null,null,null,"Apr"]
[null,null,null,null,null,null,null,null,null,null,"May"]
[null,null,null,null,null,null,null,null,null,null,"Jun"]
[null,null,null,null,null,null,null,null,null,null,"Jul"]
[null,null,null,null,null,null,null,null,null,null,"Aug"]
[null,null,null,null,null,null,null,null,null,null,"Sep"]
[null,null,null,null,null,null,null,null,null,null,"Oct"]
[null,null,null,null,null,null,null,null,null,null,"Nov"]
["Comments :",null,null,null,null,null,null,null,null,null,"Dec"]
[null,null,null,null,null,null,null,null,null,null,"Annual",{"$f":"AVERAGE(L37:L48)","v":{"$error":"#DIV/0!"}},{"$f":"MAX(M37:M48)","v":0},{"$f":"AVERAGE(N37:N48)","v":{"$error":"#DIV/0!"}},{"$f":"MAX(O37:O48)","v":0}]
[]
[null,null,null,null,null,null,null,null,null,{"$f":"+A6","v":2023},"mg/Nm3","Monthly 1/2 hourly mean","Monthly 1/2 hourly maximum","Monthly daily mean","Monthly daily maximum"]
[null,null,null,null,null,null,null,null,null,"A4","Jan"]
[null,null,null,null,null,null,null,null,null,null,"Feb"]
[null,null,null,null,null,null,null,null,null,null,"Mar"]
[null,null,null,null,null,null,null,null,null,null,"Apr"]
[null,null,null,null,null,null,null,null,null,null,"May"]
[null,null,null,null,null,null,null,null,null,null,"Jun"]
[null,null,null,null,null,null,null,null,null,null,"Jul"]
[null,null,null,null,null,null,null,null,null,null,"Aug"]
[null,null,null,null,null,null,null,null,null,null,"Sep"]
[null,null,null,null,null,null,null,null,null,null,"Oct"]
[null,null,null,null,null,null,null,null,null,null,"Nov"]
[null,null,null,null,null,null,null,null,null,null,"Dec"]
[null,null,null,null,null,null,null,null,null,null,"Annual",{"$f":"AVERAGE(L52:L63)","v":{"$error":"#DIV/0!"}},{"$f":"MAX(M52:M63)","v":0},{"$f":"AVERAGE(N52:N63)","v":{"$error":"#DIV/0!"}},{"$f":"MAX(O52:O63)","v":0}]
[]
[null,null,null,null,null,null,null,null,null,{"$f":"+A6","v":2023},"mg/Nm3","Monthly 1/2 hourly mean","Monthly 1/2 hourly maximum","Monthly daily mean","Monthly daily maximum"]
[null,null,null,null,null,null,null,null,null,"A5","Jan"]
[null,null,null,null,null,null,null,null,null,null,"Feb"]
[null,null,null,null,null,null,null,null,null,null,"Mar"]
[null,null,null,null,null,null,null,null,null,null,"Apr"]
[null,null,null,null,null,null,null,null,null,null,"May"]
[null,null,null,null,null,null,null,null,null,null,"Jun"]
[null,null,null,null,null,null,null,null,null,null,"Jul"]
[null,null,null,null,null,null,null,null,null,null,"Aug"]
[null,null,null,null,null,null,null,null,null,null,"Sep"]
[null,null,null,null,null,null,null,null,null,null,"Oct"]
[null,null,null,null,null,null,null,null,null,null,"Nov"]
[null,null,null,null,null,null,null,null,null,null,"Dec"]
[null,null,null,null,null,null,null,null,null,null,"Annual",{"$f":"AVERAGE(L67:L78)","v":{"$error":"#DIV/0!"}},{"$f":"MAX(M67:M78)","v":0},{"$f":"AVERAGE(N67:N78)","v":{"$error":"#DIV/0!"}},{"$f":"MAX(O67:O78)","v":0}]

{"sheet":"TOC","index":18,"n_rows":79,"n_cols":17,"rows_kept":79,"cut":false,"hidden":false,"merged":[[3,16,7,18],[9,16,11,18],[12,16,15,18],[66,9,78,9],[4,1,4,3],[4,4,4,6],[4,9,4,14],[6,9,18,9],[21,9,33,9],[36,9,48,9],[47,0,47,6],[48,0,51,6],[51,9,63,9]]}
[{"$f":"+'Cover Page'!$B$29","v":"Annual Performance Report 2023"},null,null,null,{"$f":"+'Cover Page'!$B$33","v":"Eastcroft Energy from Waste Plant"}]
[]
["Monitoring of Total organic carbon emissions",null,null,"Whole Installation",null,null,"See  Notes in Cell Q3",null,null,{"$f":"+A3","v":"Monitoring of Total organic carbon emissions"},null,null,null,"Per Combustion Line",null,null,"Notes:"]
[null,null,null,null,null,null,null,null,null,null,null,null,null,null,null,null,"User to add logic to complete Whole installation, Table A5:G18. From the data in Per Combustion Line, Table J6:O79, subject to No. of lines installed"]
["mg/Nm3","1/2 Hourly Reference Periods",null,null,"Daily Reference Periods"]
[{"$f":"+'Cover Page'!C39","v":2023},"1/2 hourly TOC ELV","Monthly 1/2 hourly mean","Highest 1/2 hourly maximum","Daily TOC ELV","Monthly daily mean","Highest daily maximum",null,null,{"$f":"+A6","v":2023},"mg/Nm3","Monthly 1/2 hourly mean","Monthly 1/2 hourly maximum","Monthly daily mean","Monthly daily maximum"]
["Jan",20,1.3,16.899999999999999,10,1.3,2.1,null,null,"A1","Jan",0.5,7.1,0.5,0.8]
["Feb",20,1.2,26.5,10,1.1000000000000001,1.8,null,null,null,"Feb",0.5,12.1,0.4,0.8]
["Mar",20,1.1000000000000001,15.899999999999999,10,1.1000000000000001,1.6,null,null,null,"Mar",0.4,10.1,0.4,0.7,null,"Whole Installation table A5:G18:"]
["Apr",20,1.1000000000000001,30,10,1,2.0999999999999996,null,null,null,"Apr",0.4,10.3,0.4,0.7,null,"Mean: for 1/2 hourly and daily periods calculate mean of values across all operational combustion lines for the month"]
["May",20,1.3,43.8,10,1.2000000000000002,2.1,null,null,null,"May",0.5,22.5,0.4,0.9]
["Jun",20,1.1000000000000001,11.3,10,1,1.2000000000000002,null,null,null,"Jun",0.4,3.9,0.3,0.4]
["Jul",20,1.6,13.8,10,1.4,2.7,null,null,null,"Jul",0.9,6.3,0.8,1.1000000000000001,null,"Maximum: for 1/2 hourly and daily periods use the highest value across all operational combustion lines for the month"]
["Aug",20,1.3,23.1,10,1.1000000000000001,3.4000000000000004,null,null,null,"Aug",0.9,12.9,0.8,2.7]
["Sep",20,1.2000000000000002,24.8,10,1.2000000000000002,1.6,null,null,null,"Sep",0.8,15.5,0.8,1.1000000000000001]
["Oct",20,1.7,27.799999999999997,10,1.6,4,null,null,null,"Oct",1,16.399999999999999,0.9,1.9]
["Nov",20,1.7,26.9,10,1.6,2.7,null,null,null,"Nov",1,21,0.9,1.6]
["Dec",20,1.7000000000000002,54.3,10,1.6,2.5,null,null,null,"Dec",0.9,15.7,0.9,1.2]
[null,null,null,null,null,null,null,null,null,null,"Annual",{"$f":"AVERAGE(L7:L18)","v":0.68333333333333324},{"$f":"MAX(M7:M18)","v":22.5},{"$f":"AVERAGE(N7:N18)","v":0.62500000000000011},{"$f":"MAX(O7:O18)","v":2.7}]
[]
[null,null,null,null,null,null,null,null,null,{"$f":"+A6","v":2023},"mg/Nm3","Monthly 1/2 hourly mean","Monthly 1/2 hourly maximum","Monthly daily mean","Monthly daily maximum"]
[null,null,null,null,null,null,null,null,null,"A2","Jan",0.8,9.8000000000000007,0.8,1.3]
[null,null,null,null,null,null,null,null,null,null,"Feb",0.7,14.4,0.7,1]
[null,null,null,null,null,null,null,null,null,null,"Mar",0.7,5.8,0.7,0.9]
[null,null,null,null,null,null,null,null,null,null,"Apr",0.7,19.7,0.6,1.4]
[null,null,null,null,null,null,null,null,null,null,"May",0.8,21.3,0.8,1.2]
[null,null,null,null,null,null,null,null,null,null,"Jun",0.7,7.4,0.7,0.8]
[null,null,null,null,null,null,null,null,null,null,"Jul",0.7,7.5,0.6,1.6]
[null,null,null,null,null,null,null,null,null,null,"Aug",0.4,10.199999999999999,0.3,0.7]
[null,null,null,null,null,null,null,null,null,null,"Sep",0.4,9.3000000000000007,0.4,0.5]
[null,null,null,null,null,null,null,null,null,null,"Oct",0.7,11.4,0.7,2.1]
[null,null,null,null,null,null,null,null,null,null,"Nov",0.7,5.9,0.7,1.1000000000000001]
[null,null,null,null,null,null,null,null,null,null,"Dec",0.8,38.6,0.7,1.3]
[null,null,null,null,null,null,null,null,null,null,"Annual",{"$f":"AVERAGE(L22:L33)","v":0.67500000000000016},{"$f":"MAX(M22:M33)","v":38.6},{"$f":"AVERAGE(N22:N33)","v":0.64166666666666672},{"$f":"MAX(O22:O33)","v":2.1}]
[]
[null,null,null,null,null,null,null,null,null,{"$f":"+A6","v":2023},"mg/Nm3","Monthly 1/2 hourly mean","Monthly 1/2 hourly maximum","Monthly daily mean","Monthly daily maximum"]
[null,null,null,null,null,null,null,null,null,"A3","Jan"]
[null,null,null,null,null,null,null,null,null,null,"Feb"]
[null,null,null,null,null,null,null,null,null,null,"Mar"]
[null,null,null,null,null,null,null,null,null,null,"Apr"]
[null,null,null,null,null,null,null,null,null,null,"May"]
[null,null,null,null,null,null,null,null,null,null,"Jun"]
[null,null,null,null,null,null,null,null,null,null,"Jul"]
[null,null,null,null,null,null,null,null,null,null,"Aug"]
[null,null,null,null,null,null,null,null,null,null,"Sep"]
[null,null,null,null,null,null,null,null,null,null,"Oct"]
[null,null,null,null,null,null,null,null,null,null,"Nov"]
["Comments :",null,null,null,null,null,null,null,null,null,"Dec"]
[null,null,null,null,null,null,null,null,null,null,"Annual",{"$f":"AVERAGE(L37:L48)","v":{"$error":"#DIV/0!"}},{"$f":"MAX(M37:M48)","v":0},{"$f":"AVERAGE(N37:N48)","v":{"$error":"#DIV/0!"}},{"$f":"MAX(O37:O48)","v":0}]
[]
[null,null,null,null,null,null,null,null,null,{"$f":"+A6","v":2023},"mg/Nm3","Monthly 1/2 hourly mean","Monthly 1/2 hourly maximum","Monthly daily mean","Monthly daily maximum"]
[null,null,null,null,null,null,null,null,null,"A4","Jan"]
[null,null,null,null,null,null,null,null,null,null,"Feb"]
[null,null,null,null,null,null,null,null,null,null,"Mar"]
[null,null,null,null,null,null,null,null,null,null,"Apr"]
[null,null,null,null,null,null,null,null,null,null,"May"]
[null,null,null,null,null,null,null,null,null,null,"Jun"]
[null,null,null,null,null,null,null,null,null,null,"Jul"]
[null,null,null,null,null,null,null,null,null,null,"Aug"]
[null,null,null,null,null,null,null,null,null,null,"Sep"]
[null,null,null,null,null,null,null,null,null,null,"Oct"]
[null,null,null,null,null,null,null,null,null,null,"Nov"]
[null,null,null,null,null,null,null,null,null,null,"Dec"]
[null,null,null,null,null,null,null,null,null,null,"Annual",{"$f":"AVERAGE(L52:L63)","v":{"$error":"#DIV/0!"}},{"$f":"MAX(M52:M63)","v":0},{"$f":"AVERAGE(N52:N63)","v":{"$error":"#DIV/0!"}},{"$f":"MAX(O52:O63)","v":0}]
[]
[null,null,null,null,null,null,null,null,null,{"$f":"+A6","v":2023},"mg/Nm3","Monthly 1/2 hourly mean","Monthly 1/2 hourly maximum","Monthly daily mean","Monthly daily maximum"]
[null,null,null,null,null,null,null,null,null,"A5","Jan"]
[null,null,null,null,null,null,null,null,null,null,"Feb"]
[null,null,null,null,null,null,null,null,null,null,"Mar"]
[null,null,null,null,null,null,null,null,null,null,"Apr"]
[null,null,null,null,null,null,null,null,null,null,"May"]
[null,null,null,null,null,null,null,null,null,null,"Jun"]
[null,null,null,null,null,null,null,null,null,null,"Jul"]
[null,null,null,null,null,null,null,null,null,null,"Aug"]
[null,null,null,null,null,null,null,null,null,null,"Sep"]
[null,null,null,null,null,null,null,null,null,null,"Oct"]
[null,null,null,null,null,null,null,null,null,null,"Nov"]
[null,null,null,null,null,null,null,null,null,null,"Dec"]
[null,null,null,null,null,null,null,null,null,null,"Annual",{"$f":"AVERAGE(L67:L78)","v":{"$error":"#DIV/0!"}},{"$f":"MAX(M67:M78)","v":0},{"$f":"AVERAGE(N67:N78)","v":{"$error":"#DIV/0!"}},{"$f":"MAX(O67:O78)","v":0}]

{"sheet":"Particulates","index":19,"n_rows":79,"n_cols":17,"rows_kept":79,"cut":false,"hidden":false,"merged":[[3,16,7,18],[9,16,11,18],[12,16,15,18],[66,9,78,9],[4,1,4,3],[4,4,4,6],[4,9,4,14],[6,9,18,9],[21,9,33,9],[36,9,48,9],[47,0,47,6],[48,0,51,6],[51,9,63,9],[18,4,18,6]]}
[{"$f":"+'Cover Page'!$B$29","v":"Annual Performance Report 2023"},null,null,null,{"$f":"+'Cover Page'!$B$33","v":"Eastcroft Energy from Waste Plant"}]
[]
["Monitoring of Particulate matter emissions",null,null,"Whole Installation",null,null,"See  Notes in Cell Q3",null,null,{"$f":"+A3","v":"Monitoring of Particulate matter emissions"},null,null,null,"Per Combustion Line",null,null,"Notes:"]
[null,null,null,null,null,null,null,null,null,null,null,null,null,null,null,null,"User to add logic to complete Whole installation, Table A5:G18. From the data in Per Combustion Line, Table J6:O79, subject to No. of lines installed"]
["mg/Nm3","1/2 Hourly Reference Periods",null,null,"Daily Reference Periods"]
[{"$f":"+'Cover Page'!C39","v":2023},"1/2 hourly PM ELV","Monthly 1/2 hourly mean","Highest 1/2 hourly maximum","Daily PM ELV*","Monthly daily mean","Highest daily maximum",null,null,{"$f":"+A6","v":2023},"mg/Nm3","Monthly 1/2 hourly mean","Monthly 1/2 hourly maximum","Monthly daily mean","Monthly daily maximum"]
["Jan",30,0.5,3.3,10,0.5,0.8,null,null,"A1","Jan",0.3,2,0.3,0.5]
["Feb",30,0.5,8.6999999999999993,10,0.4,0.7,null,null,null,"Feb",0.3,2.4,0.3,0.4]
["Mar",30,0.5,0.89999999999999991,10,0.4,0.60000000000000009,null,null,null,"Mar",0.3,0.6,0.3,0.4,null,"Whole Installation table A5:G18:"]
["Apr",30,0.60000000000000009,4.5999999999999996,10,0.5,0.7,null,null,null,"Apr",0.4,1.8,0.4,0.5,null,"Mean: for 1/2 hourly and daily periods calculate mean of values across all operational combustion lines for the month"]
["May",30,0.60000000000000009,8.6000000000000014,10,0.5,1.1000000000000001,null,null,null,"May",0.4,4.4000000000000004,0.4,0.7]
["Jun",30,0.60000000000000009,1.3,10,0.4,0.60000000000000009,null,null,null,"Jun",0.4,0.8,0.3,0.4]
["Jul",30,0.4,4.2,10,0.2,0.6,null,null,null,"Jul",0.2,0.9,0.1,0.3,null,"Maximum: for 1/2 hourly and daily periods use the highest value across all operational combustion lines for the month"]
["Aug",30,0.5,3.5,10,0.30000000000000004,0.60000000000000009,null,null,null,"Aug",0.3,3.1,0.2,0.4]
["Sep",30,0.5,1,10,0.4,0.5,null,null,null,"Sep",0.3,0.6,0.3,0.3]
["Oct",30,0.6,9.1,10,0.5,1,null,null,null,"Oct",0.3,2.9,0.3,0.5]
["Nov",30,0.8,8.1000000000000014,10,0.7,1.1000000000000001,null,null,null,"Nov",0.4,3.2,0.4,0.6]
["Dec",30,1,4.8999999999999995,5,1,1.4,null,null,null,"Dec",0.4,0.8,0.4,0.5]
[null,null,null,null,"* ELV reduced to 5 mg/Nm3 on 3 December 2023",null,null,null,null,null,"Annual",{"$f":"AVERAGE(L7:L18)","v":0.33333333333333326},{"$f":"MAX(M7:M18)","v":4.4000000000000004},{"$f":"AVERAGE(N7:N18)","v":0.30833333333333329},{"$f":"MAX(O7:O18)","v":0.7}]
[]
[null,null,null,null,null,null,null,null,null,{"$f":"+A6","v":2023},"mg/Nm3","Monthly 1/2 hourly mean","Monthly 1/2 hourly maximum","Monthly daily mean","Monthly daily maximum"]
[null,null,null,null,null,null,null,null,null,"A2","Jan",0.2,1.3,0.2,0.3]
[null,null,null,null,null,null,null,null,null,null,"Feb",0.2,6.3,0.1,0.3]
[null,null,null,null,null,null,null,null,null,null,"Mar",0.2,0.3,0.1,0.2]
[null,null,null,null,null,null,null,null,null,null,"Apr",0.2,2.8,0.1,0.2]
[null,null,null,null,null,null,null,null,null,null,"May",0.2,4.2,0.1,0.4]
[null,null,null,null,null,null,null,null,null,null,"Jun",0.2,0.5,0.1,0.2]
[null,null,null,null,null,null,null,null,null,null,"Jul",0.2,3.3,0.1,0.3]
[null,null,null,null,null,null,null,null,null,null,"Aug",0.2,0.4,0.1,0.2]
[null,null,null,null,null,null,null,null,null,null,"Sep",0.2,0.4,0.1,0.2]
[null,null,null,null,null,null,null,null,null,null,"Oct",0.3,6.2,0.2,0.5]
[null,null,null,null,null,null,null,null,null,null,"Nov",0.4,4.9000000000000004,0.3,0.5]
[null,null,null,null,null,null,null,null,null,null,"Dec",0.6,4.0999999999999996,0.6,0.9]
[null,null,null,null,null,null,null,null,null,null,"Annual",{"$f":"AVERAGE(L22:L33)","v":0.2583333333333333},{"$f":"MAX(M22:M33)","v":6.3},{"$f":"AVERAGE(N22:N33)","v":0.17500000000000002},{"$f":"MAX(O22:O33)","v":0.9}]
[]
[null,null,null,null,null,null,null,null,null,{"$f":"+A6","v":2023},"mg/Nm3","Monthly 1/2 hourly mean","Monthly 1/2 hourly maximum","Monthly daily mean","Monthly daily maximum"]
[null,null,null,null,null,null,null,null,null,"A3","Jan"]
[null,null,null,null,null,null,null,null,null,null,"Feb"]
[null,null,null,null,null,null,null,null,null,null,"Mar"]
[null,null,null,null,null,null,null,null,null,null,"Apr"]
[null,null,null,null,null,null,null,null,null,null,"May"]
[null,null,null,null,null,null,null,null,null,null,"Jun"]
[null,null,null,null,null,null,null,null,null,null,"Jul"]
[null,null,null,null,null,null,null,null,null,null,"Aug"]
[null,null,null,null,null,null,null,null,null,null,"Sep"]
[null,null,null,null,null,null,null,null,null,null,"Oct"]
[null,null,null,null,null,null,null,null,null,null,"Nov"]
["Comments :",null,null,null,null,null,null,null,null,null,"Dec"]
[null,null,null,null,null,null,null,null,null,null,"Annual",{"$f":"AVERAGE(L37:L48)","v":{"$error":"#DIV/0!"}},{"$f":"MAX(M37:M48)","v":0},{"$f":"AVERAGE(N37:N48)","v":{"$error":"#DIV/0!"}},{"$f":"MAX(O37:O48)","v":0}]
[]
[null,null,null,null,null,null,null,null,null,{"$f":"+A6","v":2023},"mg/Nm3","Monthly 1/2 hourly mean","Monthly 1/2 hourly maximum","Monthly daily mean","Monthly daily maximum"]
[null,null,null,null,null,null,null,null,null,"A4","Jan"]
[null,null,null,null,null,null,null,null,null,null,"Feb"]
[null,null,null,null,null,null,null,null,null,null,"Mar"]
[null,null,null,null,null,null,null,null,null,null,"Apr"]
[null,null,null,null,null,null,null,null,null,null,"May"]
[null,null,null,null,null,null,null,null,null,null,"Jun"]
[null,null,null,null,null,null,null,null,null,null,"Jul"]
[null,null,null,null,null,null,null,null,null,null,"Aug"]
[null,null,null,null,null,null,null,null,null,null,"Sep"]
[null,null,null,null,null,null,null,null,null,null,"Oct"]
[null,null,null,null,null,null,null,null,null,null,"Nov"]
[null,null,null,null,null,null,null,null,null,null,"Dec"]
[null,null,null,null,null,null,null,null,null,null,"Annual",{"$f":"AVERAGE(L52:L63)","v":{"$error":"#DIV/0!"}},{"$f":"MAX(M52:M63)","v":0},{"$f":"AVERAGE(N52:N63)","v":{"$error":"#DIV/0!"}},{"$f":"MAX(O52:O63)","v":0}]
[]
[null,null,null,null,null,null,null,null,null,{"$f":"+A6","v":2023},"mg/Nm3","Monthly 1/2 hourly mean","Monthly 1/2 hourly maximum","Monthly daily mean","Monthly daily maximum"]
[null,null,null,null,null,null,null,null,null,"A5","Jan"]
[null,null,null,null,null,null,null,null,null,null,"Feb"]
[null,null,null,null,null,null,null,null,null,null,"Mar"]
[null,null,null,null,null,null,null,null,null,null,"Apr"]
[null,null,null,null,null,null,null,null,null,null,"May"]
[null,null,null,null,null,null,null,null,null,null,"Jun"]
[null,null,null,null,null,null,null,null,null,null,"Jul"]
[null,null,null,null,null,null,null,null,null,null,"Aug"]
[null,null,null,null,null,null,null,null,null,null,"Sep"]
[null,null,null,null,null,null,null,null,null,null,"Oct"]
[null,null,null,null,null,null,null,null,null,null,"Nov"]
[null,null,null,null,null,null,null,null,null,null,"Dec"]
[null,null,null,null,null,null,null,null,null,null,"Annual",{"$f":"AVERAGE(L67:L78)","v":{"$error":"#DIV/0!"}},{"$f":"MAX(M67:M78)","v":0},{"$f":"AVERAGE(N67:N78)","v":{"$error":"#DIV/0!"}},{"$f":"MAX(O67:O78)","v":0}]

{"sheet":"CO 0.5 hourly","index":20,"n_rows":82,"n_cols":17,"rows_kept":82,"cut":false,"hidden":false,"merged":[[4,0,5,6],[6,16,10,18],[12,16,14,18],[15,16,18,18],[69,9,81,9],[7,1,7,3],[7,4,7,6],[7,9,7,14],[9,9,21,9],[24,9,36,9],[39,9,51,9],[50,0,50,6],[51,0,54,6],[54,9,66,9]]}
[{"$f":"+'Cover Page'!$B$29","v":"Annual Performance Report 2023"},null,null,null,{"$f":"+'Cover Page'!$B$33","v":"Eastcroft Energy from Waste Plant"}]
[]
["Monitoring of Carbon Monoxide (half hourly)",null,null,"Whole Installation",null,null,"See  Notes in Cell Q3",null,null,{"$f":"+A3","v":"Monitoring of Carbon Monoxide (half hourly)"},null,null,null,"Per Combustion Line",null,null,"Notes:"]
[]
["Please complete this tab for your plant if you have 1/2 hourly CO ELVs; otherwise, leave it blank and complete the CO 95% 10 min tab"]
[]
[null,null,null,null,null,null,null,null,null,null,null,null,null,null,null,null,"User to add logic to complete Whole installation, Table A5:G18. From the data in Per Combustion Line, Table J6:O79, subject to No. of lines installed"]
["mg/Nm3","1/2 Hourly Reference Periods",null,null,"Daily Reference Periods"]
[{"$f":"+'Cover Page'!C39","v":2023},"1/2 hourly CO ELV","Monthly 1/2 hourly mean","Highest 1/2 hourly maximum","Daily CO ELV","Monthly daily mean","Highest daily maximum",null,null,{"$f":"+A9","v":2023},"mg/Nm3","Monthly 1/2 hourly mean","Monthly 1/2 hourly maximum","Monthly daily mean","Monthly daily maximum"]
["Jan",100,null,null,50,null,null,null,null,"A1","Jan"]
["Feb",{"$f":"+B10","v":100},null,null,{"$f":"+E10","v":50},null,null,null,null,null,"Feb"]
["Mar",{"$f":"+B11","v":100},null,null,{"$f":"+E11","v":50},null,null,null,null,null,"Mar",null,null,null,null,null,"Whole Installation table A5:G18:"]
["Apr",100,null,null,50,null,null,null,null,null,"Apr",null,null,null,null,null,"Mean: for 1/2 hourly and daily periods calculate mean of values across all operational combustion lines for the month"]
["May",100,null,null,50,null,null,null,null,null,"May"]
["Jun",100,null,null,50,null,null,null,null,null,"Jun"]
["Jul",100,null,null,50,null,null,null,null,null,"Jul",null,null,null,null,null,"Maximum: for 1/2 hourly and daily periods use the highest value across all operational combustion lines for the month"]
["Aug",100,null,null,50,null,null,null,null,null,"Aug"]
["Sep",100,null,null,50,null,null,null,null,null,"Sep"]
["Oct",100,null,null,50,null,null,null,null,null,"Oct"]
["Nov",100,null,null,50,null,null,null,null,null,"Nov"]
["Dec",100,null,null,50,null,null,null,null,null,"Dec"]
[null,null,null,null,null,null,null,null,null,null,"Annual",{"$f":"AVERAGE(L10:L21)","v":{"$error":"#DIV/0!"}},{"$f":"MAX(M10:M21)","v":0},{"$f":"AVERAGE(N10:N21)","v":{"$error":"#DIV/0!"}},{"$f":"MAX(O10:O21)","v":0}]
[]
[null,null,null,null,null,null,null,null,null,{"$f":"+A9","v":2023},"mg/Nm3","Monthly 1/2 hourly mean","Monthly 1/2 hourly maximum","Monthly daily mean","Monthly daily maximum"]
[null,null,null,null,null,null,null,null,null,"A2","Jan"]
[null,null,null,null,null,null,null,null,null,null,"Feb"]
[null,null,null,null,null,null,null,null,null,null,"Mar"]
[null,null,null,null,null,null,null,null,null,null,"Apr"]
[null,null,null,null,null,null,null,null,null,null,"May"]
[null,null,null,null,null,null,null,null,null,null,"Jun"]
[null,null,null,null,null,null,null,null,null,null,"Jul"]
[null,null,null,null,null,null,null,null,null,null,"Aug"]
[null,null,null,null,null,null,null,null,null,null,"Sep"]
[null,null,null,null,null,null,null,null,null,null,"Oct"]
[null,null,null,null,null,null,null,null,null,null,"Nov"]
[null,null,null,null,null,null,null,null,null,null,"Dec"]
[null,null,null,null,null,null,null,null,null,null,"Annual",{"$f":"AVERAGE(L25:L36)","v":{"$error":"#DIV/0!"}},{"$f":"MAX(M25:M36)","v":0},{"$f":"AVERAGE(N25:N36)","v":{"$error":"#DIV/0!"}},{"$f":"MAX(O25:O36)","v":0}]
[]
[null,null,null,null,null,null,null,null,null,{"$f":"+A9","v":2023},"mg/Nm3","Monthly 1/2 hourly mean","Monthly 1/2 hourly maximum","Monthly daily mean","Monthly daily maximum"]
[null,null,null,null,null,null,null,null,null,"A3","Jan"]
[null,null,null,null,null,null,null,null,null,null,"Feb"]
[null,null,null,null,null,null,null,null,null,null,"Mar"]
[null,null,null,null,null,null,null,null,null,null,"Apr"]
[null,null,null,null,null,null,null,null,null,null,"May"]
[null,null,null,null,null,null,null,null,null,null,"Jun"]
[null,null,null,null,null,null,null,null,null,null,"Jul"]
[null,null,null,null,null,null,null,null,null,null,"Aug"]
[null,null,null,null,null,null,null,null,null,null,"Sep"]
[null,null,null,null,null,null,null,null,null,null,"Oct"]
[null,null,null,null,null,null,null,null,null,null,"Nov"]
["Comments :",null,null,null,null,null,null,null,null,null,"Dec"]
[null,null,null,null,null,null,null,null,null,null,"Annual",{"$f":"AVERAGE(L40:L51)","v":{"$error":"#DIV/0!"}},{"$f":"MAX(M40:M51)","v":0},{"$f":"AVERAGE(N40:N51)","v":{"$error":"#DIV/0!"}},{"$f":"MAX(O40:O51)","v":0}]
[]
[null,null,null,null,null,null,null,null,null,{"$f":"+A9","v":2023},"mg/Nm3","Monthly 1/2 hourly mean","Monthly 1/2 hourly maximum","Monthly daily mean","Monthly daily maximum"]
[null,null,null,null,null,null,null,null,null,"A4","Jan"]
[null,null,null,null,null,null,null,null,null,null,"Feb"]
[null,null,null,null,null,null,null,null,null,null,"Mar"]
[null,null,null,null,null,null,null,null,null,null,"Apr"]
[null,null,null,null,null,null,null,null,null,null,"May"]
[null,null,null,null,null,null,null,null,null,null,"Jun"]
[null,null,null,null,null,null,null,null,null,null,"Jul"]
[null,null,null,null,null,null,null,null,null,null,"Aug"]
[null,null,null,null,null,null,null,null,null,null,"Sep"]
[null,null,null,null,null,null,null,null,null,null,"Oct"]
[null,null,null,null,null,null,null,null,null,null,"Nov"]
[null,null,null,null,null,null,null,null,null,null,"Dec"]
[null,null,null,null,null,null,null,null,null,null,"Annual",{"$f":"AVERAGE(L55:L66)","v":{"$error":"#DIV/0!"}},{"$f":"MAX(M55:M66)","v":0},{"$f":"AVERAGE(N55:N66)","v":{"$error":"#DIV/0!"}},{"$f":"MAX(O55:O66)","v":0}]
[]
[null,null,null,null,null,null,null,null,null,{"$f":"+A9","v":2023},"mg/Nm3","Monthly 1/2 hourly mean","Monthly 1/2 hourly maximum","Monthly daily mean","Monthly daily maximum"]
[null,null,null,null,null,null,null,null,null,"A5","Jan"]
[null,null,null,null,null,null,null,null,null,null,"Feb"]
[null,null,null,null,null,null,null,null,null,null,"Mar"]
[null,null,null,null,null,null,null,null,null,null,"Apr"]
[null,null,null,null,null,null,null,null,null,null,"May"]
[null,null,null,null,null,null,null,null,null,null,"Jun"]
[null,null,null,null,null,null,null,null,null,null,"Jul"]
[null,null,null,null,null,null,null,null,null,null,"Aug"]
[null,null,null,null,null,null,null,null,null,null,"Sep"]
[null,null,null,null,null,null,null,null,null,null,"Oct"]
[null,null,null,null,null,null,null,null,null,null,"Nov"]
[null,null,null,null,null,null,null,null,null,null,"Dec"]
[null,null,null,null,null,null,null,null,null,null,"Annual",{"$f":"AVERAGE(L70:L81)","v":{"$error":"#DIV/0!"}},{"$f":"MAX(M70:M81)","v":0},{"$f":"AVERAGE(N70:N81)","v":{"$error":"#DIV/0!"}},{"$f":"MAX(O70:O81)","v":0}]

{"sheet":"CO 95% 10 min","index":21,"n_rows":82,"n_cols":19,"rows_kept":82,"cut":false,"hidden":false,"merged":[[4,0,5,7],[6,18,10,20],[12,18,14,20],[15,18,18,20],[69,10,81,10],[7,1,7,4],[7,5,7,7],[7,10,7,16],[9,10,21,10],[24,10,36,10],[39,10,51,10],[50,0,50,7],[51,0,54,7],[54,10,66,10]]}
[{"$f":"+'Cover Page'!$B$29","v":"Annual Performance Report 2023"},null,null,null,{"$f":"+'Cover Page'!$B$33","v":"Eastcroft Energy from Waste Plant"}]
[]
["Monitoring of Carbon Monoxide (10-minute avg)",null,null,null,"Whole Installation",null,null,"See  Notes in Cell S3",null,{"$f":"+A3","v":"Monitoring of Carbon Monoxide (10-minute avg)"},null,null,null,null,"Per Combustion Line",null,"Notes:",null,"Notes:"]
[]
["Please complete this tab for your plant if you have 10-minute average CO ELVs; otherwise, leave it blank and complete the CO 0.5 hourly tab"]
[]
[null,null,null,null,null,null,null,null,null,null,null,null,null,null,null,null,null,null,"User to add logic to complete Whole installation, Table A5:H18. From the data in Per Combustion Line, Table K6:Q79, subject to No. of lines installed"]
["mg/Nm3","10-minute Reference Periods",null,null,null,"Daily Reference Periods"]
[{"$f":"+'Cover Page'!C39","v":2023},"95%ile 10-min avg CO ELV","95%ile 10-min avg maximum","Monthly CO 10-min avg mean","10-min avg maximum","Daily CO ELV","Monthly daily mean","Highest daily maximum",null,null,{"$f":"+A9","v":2023},"mg/Nm3","95%ile 10-min avg maximum","Monthly CO 10-min avg mean","10-min avg maximum","Monthly daily mean","Monthly daily maximum"]
["Jan",150,300,13.899999999999999,522.20000000000005,50,13.899999999999999,522.20000000000005,null,null,"A1","Jan",150,5.3,222.7,5.2,6.9]
["Feb",{"$f":"+B10","v":150},300,10.4,806.7,{"$f":"+F10","v":50},10.4,806.7,null,null,null,"Feb",150,4.2,270.7,4.2,5.9]
["Mar",{"$f":"+B11","v":150},300,12.4,376.8,{"$f":"+F11","v":50},12.4,376.8,null,null,null,"Mar",150,4.5,240,4.5,8.1,null,"Whole Installation table A5:H18:"]
["Apr",150,300,12.4,828.8,50,12.4,828.8,null,null,null,"Apr",150,4.4000000000000004,171.7,4.4000000000000004,6.4,null,"Mean: for 10-min and daily periods use average of all operational combustion lines."]
["May",150,300,12.9,692.5,50,12.9,692.5,null,null,null,"May",150,5,436.2,5,6.6]
["Jun",150,300,13.3,218.8,50,13.3,218.8,null,null,null,"Jun",150,4.4000000000000004,58.9,4.3,5.8]
["Jul",150,300,13.2,750,50,13.2,750,null,null,null,"Jul",150,7.1,462.3,6.7,15.5,null,"Maximum: for 10-min and daily periods use the highest of all operational combustion lines in any month."]
["Aug",150,300,10.899999999999999,622.79999999999995,50,10.899999999999999,622.79999999999995,null,null,null,"Aug",150,6.8,446,6.8,13.2]
["Sep",150,300,10.8,829.40000000000009,50,10.8,829.40000000000009,null,null,null,"Sep",150,6.1,579.70000000000005,6.1,10.9]
["Oct",150,300,16.8,428.7,50,16.8,428.7,null,null,null,"Oct",150,8,225.7,8,12.7]
["Nov",150,300,16.5,692.8,50,16.5,692.8,null,null,null,"Nov",150,9,544.9,9,17]
["Dec",150,300,15.3,854.7,50,15.3,854.7,null,null,null,"Dec",150,7.5,288.8,7.4,10.199999999999999]
[null,null,null,null,null,null,null,null,null,null,null,"Annual",{"$f":"AVERAGE(M10:M21)","v":150},null,{"$f":"MAX(O10:O21)","v":579.70000000000005},{"$f":"AVERAGE(P10:P21)","v":5.9666666666666677},{"$f":"MAX(Q10:Q21)","v":17}]
[]
[null,null,null,null,null,null,null,null,null,null,{"$f":"+A9","v":2023},"mg/Nm3","95%ile 10-min avg maximum","Monthly CO 10-min avg mean","10-min avg maximum","Monthly daily mean","Monthly daily maximum"]
[null,null,null,null,null,null,null,null,null,null,"A2","Jan",150,8.6,299.5,8.6,19]
[null,null,null,null,null,null,null,null,null,null,null,"Feb",150,6.2,536,6.1,12.2]
[null,null,null,null,null,null,null,null,null,null,null,"Mar",150,7.9,136.80000000000001,7.9,10.8]
[null,null,null,null,null,null,null,null,null,null,null,"Apr",150,8,657.1,7.9,14.1]
[null,null,null,null,null,null,null,null,null,null,null,"May",150,7.9,256.3,7.9,11.2]
[null,null,null,null,null,null,null,null,null,null,null,"Jun",150,8.9,159.9,8.9,10.7]
[null,null,null,null,null,null,null,null,null,null,null,"Jul",150,6.1,287.7,5.3,15.5]
[null,null,null,null,null,null,null,null,null,null,null,"Aug",150,4.0999999999999996,176.8,4,6.5]
[null,null,null,null,null,null,null,null,null,null,null,"Sep",150,4.7,249.7,4.5999999999999996,8.1]
[null,null,null,null,null,null,null,null,null,null,null,"Oct",150,8.8000000000000007,203,8.6,16.3]
[null,null,null,null,null,null,null,null,null,null,null,"Nov",150,7.5,147.9,7.4,10.4]
[null,null,null,null,null,null,null,null,null,null,null,"Dec",150,7.8,565.9,7.8,12]
[null,null,null,null,null,null,null,null,null,null,null,"Annual",{"$f":"AVERAGE(M25:M36)","v":150},null,{"$f":"MAX(O25:O36)","v":657.1},{"$f":"AVERAGE(P25:P36)","v":7.083333333333333},{"$f":"MAX(Q25:Q36)","v":19}]
[]
[null,null,null,null,null,null,null,null,null,null,{"$f":"+A9","v":2023},"mg/Nm3","95%ile 10-min avg maximum","Monthly CO 10-min avg mean","10-min avg maximum","Monthly daily mean","Monthly daily maximum"]
[null,null,null,null,null,null,null,null,null,null,"A3","Jan"]
[null,null,null,null,null,null,null,null,null,null,null,"Feb"]
[null,null,null,null,null,null,null,null,null,null,null,"Mar"]
[null,null,null,null,null,null,null,null,null,null,null,"Apr"]
[null,null,null,null,null,null,null,null,null,null,null,"May"]
[null,null,null,null,null,null,null,null,null,null,null,"Jun"]
[null,null,null,null,null,null,null,null,null,null,null,"Jul"]
[null,null,null,null,null,null,null,null,null,null,null,"Aug"]
[null,null,null,null,null,null,null,null,null,null,null,"Sep"]
[null,null,null,null,null,null,null,null,null,null,null,"Oct"]
[null,null,null,null,null,null,null,null,null,null,null,"Nov"]
["Comments :",null,null,null,null,null,null,null,null,null,null,"Dec"]
["Environment Agency explanatory note: The 10-minute average ELV is based on the “95th percentile”. In this case this means that 95% of the 10 minute averages in the relevant 24-hour period (i.e. 137) must be below 150 mg/Nm3, and 5% (i.e. 7) are allowed to be any value above 150 mg/Nm3. Whilst we expect operators to minimise CO emissions at all times, it is perfectly acceptable for the value of the maximum 10-minute average to be above 150 mg/Nm3, provided the 95th percentile ELV has been met for that period. ",null,null,null,null,null,null,null,null,null,null,"Annual",{"$f":"AVERAGE(M40:M51)","v":{"$error":"#DIV/0!"}},null,{"$f":"MAX(O40:O51)","v":0},{"$f":"AVERAGE(P40:P51)","v":{"$error":"#DIV/0!"}},{"$f":"MAX(Q40:Q51)","v":0}]
[]
[null,null,null,null,null,null,null,null,null,null,{"$f":"+A9","v":2023},"mg/Nm3","95%ile 10-min avg maximum","Monthly CO 10-min avg mean","10-min avg maximum","Monthly daily mean","Monthly daily maximum"]
[null,null,null,null,null,null,null,null,null,null,"A4","Jan"]
[null,null,null,null,null,null,null,null,null,null,null,"Feb"]
[null,null,null,null,null,null,null,null,null,null,null,"Mar"]
[null,null,null,null,null,null,null,null,null,null,null,"Apr"]
[null,null,null,null,null,null,null,null,null,null,null,"May"]
[null,null,null,null,null,null,null,null,null,null,null,"Jun"]
[null,null,null,null,null,null,null,null,null,null,null,"Jul"]
[null,null,null,null,null,null,null,null,null,null,null,"Aug"]
[null,null,null,null,null,null,null,null,null,null,null,"Sep"]
[null,null,null,null,null,null,null,null,null,null,null,"Oct"]
[null,null,null,null,null,null,null,null,null,null,null,"Nov"]
[null,null,null,null,null,null,null,null,null,null,null,"Dec"]
[null,null,null,null,null,null,null,null,null,null,null,"Annual",{"$f":"AVERAGE(M55:M66)","v":{"$error":"#DIV/0!"}},null,{"$f":"MAX(O55:O66)","v":0},{"$f":"AVERAGE(P55:P66)","v":{"$error":"#DIV/0!"}},{"$f":"MAX(Q55:Q66)","v":0}]
[]
[null,null,null,null,null,null,null,null,null,null,{"$f":"+A9","v":2023},"mg/Nm3","95%ile 10-min avg maximum","Monthly CO 10-min avg mean","10-min avg maximum","Monthly daily mean","Monthly daily maximum"]
[null,null,null,null,null,null,null,null,null,null,"A5","Jan"]
[null,null,null,null,null,null,null,null,null,null,null,"Feb"]
[null,null,null,null,null,null,null,null,null,null,null,"Mar"]
[null,null,null,null,null,null,null,null,null,null,null,"Apr"]
[null,null,null,null,null,null,null,null,null,null,null,"May"]
[null,null,null,null,null,null,null,null,null,null,null,"Jun"]
[null,null,null,null,null,null,null,null,null,null,null,"Jul"]
[null,null,null,null,null,null,null,null,null,null,null,"Aug"]
[null,null,null,null,null,null,null,null,null,null,null,"Sep"]
[null,null,null,null,null,null,null,null,null,null,null,"Oct"]
[null,null,null,null,null,null,null,null,null,null,null,"Nov"]
[null,null,null,null,null,null,null,null,null,null,null,"Dec"]
[null,null,null,null,null,null,null,null,null,null,null,"Annual",{"$f":"AVERAGE(M70:M81)","v":{"$error":"#DIV/0!"}},null,{"$f":"MAX(O70:O81)","v":0},{"$f":"AVERAGE(P70:P81)","v":{"$error":"#DIV/0!"}},{"$f":"MAX(Q70:Q81)","v":0}]

{"sheet":"NH3","index":22,"n_rows":79,"n_cols":17,"rows_kept":79,"cut":false,"hidden":false,"merged":[[3,16,7,18],[9,16,11,18],[12,16,15,18],[66,9,78,9],[4,1,4,3],[4,4,4,6],[4,9,4,14],[6,9,18,9],[21,9,33,9],[36,9,48,9],[47,0,47,6],[48,0,51,6],[51,9,63,9],[18,4,18,6]]}
[{"$f":"+'Cover Page'!$B$29","v":"Annual Performance Report 2023"},null,null,null,{"$f":"+'Cover Page'!$B$33","v":"Eastcroft Energy from Waste Plant"}]
[]
["Monitoring of Ammnonia emissions ",null,null,"Whole Installation",null,null,"See  Notes in Cell Q3",null,null,{"$f":"+A3","v":"Monitoring of Ammnonia emissions "},null,null,null,"Per Combustion Line",null,null,"Notes:"]
[null,null,null,null,null,null,null,null,null,null,null,null,null,null,null,null,"User to add logic to complete Whole installation, Table A5:G18. From the data in Per Combustion Line, Table J6:O79, subject to No. of lines installed"]
["mg/Nm3","1/2 Hourly Reference Periods",null,null,"Daily Reference Periods"]
[{"$f":"+'Cover Page'!C39","v":2023},"1/2 hourly NH3 ELV","Monthly 1/2 hourly mean","Highest 1/2 hourly maximum","Daily NH3 ELV*","Monthly daily mean","Highest daily maximum",null,null,{"$f":"+A6","v":2023},"mg/Nm3","Monthly 1/2 hourly mean","Monthly 1/2 hourly maximum","Monthly daily mean","Monthly daily maximum"]
["Jan","None",1.9,9,"None",1.9,2.7,null,null,"A1","Jan",1.2,4.4000000000000004,1.2,1.6]
["Feb",{"$f":"+B7","v":"None"},1.7000000000000002,12,"None",1.6,3,null,null,null,"Feb",0.9,3.6,0.9,1.5]
["Mar",{"$f":"+B8","v":"None"},1.4,9.5,"None",1.2,2.4,null,null,null,"Mar",0.7,4,0.6,1.2,null,"Whole Installation table A5:G18:"]
["Apr","None",3,17.600000000000001,"None",3,5.3000000000000007,null,null,null,"Apr",1.6,6.3,1.6,2.2000000000000002,null,"Mean: for 1/2 hourly and daily periods calculate mean of values across all operational combustion lines for the month"]
["May","None",3.3,13.100000000000001,"None",3.3,4.6999999999999993,null,null,null,"May",1.5,5.2,1.5,2.2999999999999998]
["Jun","None",1.4,4.6999999999999993,"None",1.2000000000000002,1.6,null,null,null,"Jun",0.5,1.4,0.4,0.5]
["Jul","None",8.3000000000000007,50.4,"None",7.6999999999999993,31.9,null,null,null,"Jul",3,19.7,2.9,14.4,null,"Maximum: for 1/2 hourly and daily periods use the highest value across all operational combustion lines for the month"]
["Aug","None",2.1,19.2,"None",2.1,4.5999999999999996,null,null,null,"Aug",1,3.3,1,1.4]
["Sep","None",1.8,12.4,"None",1.6,2.5,null,null,null,"Sep",0.9,5.4,0.8,1.2]
["Oct","None",5.1999999999999993,70,"None",5,13.2,null,null,null,"Oct",1.4,16.7,1.2,2.1]
["Nov","None",5.3000000000000007,39.099999999999994,"None",5.3000000000000007,10.5,null,null,null,"Nov",2.6,18.2,2.6,4.5999999999999996]
["Dec","None",3.8,22.5,15,3.8,6.3,null,null,null,"Dec",1.7,11.3,1.7,2.8]
[null,null,null,null,"* ELV came into force on 3 December 2023",null,null,null,null,null,"Annual",{"$f":"AVERAGE(L7:L18)","v":1.4166666666666667},{"$f":"MAX(M7:M18)","v":19.7},{"$f":"AVERAGE(N7:N18)","v":1.3666666666666669},{"$f":"MAX(O7:O18)","v":14.4}]
[]
[null,null,null,null,null,null,null,null,null,{"$f":"+A6","v":2023},"mg/Nm3","Monthly 1/2 hourly mean","Monthly 1/2 hourly maximum","Monthly daily mean","Monthly daily maximum"]
[null,null,null,null,null,null,null,null,null,"A2","Jan",0.7,4.5999999999999996,0.7,1.1000000000000001]
[null,null,null,null,null,null,null,null,null,null,"Feb",0.8,8.4,0.7,1.5]
[null,null,null,null,null,null,null,null,null,null,"Mar",0.7,5.5,0.6,1.2]
[null,null,null,null,null,null,null,null,null,null,"Apr",1.4,11.3,1.4,3.1]
[null,null,null,null,null,null,null,null,null,null,"May",1.8,7.9,1.8,2.4]
[null,null,null,null,null,null,null,null,null,null,"Jun",0.9,3.3,0.8,1.1000000000000001]
[null,null,null,null,null,null,null,null,null,null,"Jul",5.3,30.7,4.8,17.5]
[null,null,null,null,null,null,null,null,null,null,"Aug",1.1000000000000001,15.9,1.1000000000000001,3.2]
[null,null,null,null,null,null,null,null,null,null,"Sep",0.9,7,0.8,1.3]
[null,null,null,null,null,null,null,null,null,null,"Oct",3.8,53.3,3.8,11.1]
[null,null,null,null,null,null,null,null,null,null,"Nov",2.7,20.9,2.7,5.9]
[null,null,null,null,null,null,null,null,null,null,"Dec",2.1,11.2,2.1,3.5]
[null,null,null,null,null,null,null,null,null,null,"Annual",{"$f":"AVERAGE(L22:L33)","v":1.8500000000000003},{"$f":"MAX(M22:M33)","v":53.3},{"$f":"AVERAGE(N22:N33)","v":1.7750000000000001},{"$f":"MAX(O22:O33)","v":17.5}]
[]
[null,null,null,null,null,null,null,null,null,{"$f":"+A6","v":2023},"mg/Nm3","Monthly 1/2 hourly mean","Monthly 1/2 hourly maximum","Monthly daily mean","Monthly daily maximum"]
[null,null,null,null,null,null,null,null,null,"A3","Jan"]
[null,null,null,null,null,null,null,null,null,null,"Feb"]
[null,null,null,null,null,null,null,null,null,null,"Mar"]
[null,null,null,null,null,null,null,null,null,null,"Apr"]
[null,null,null,null,null,null,null,null,null,null,"May"]
[null,null,null,null,null,null,null,null,null,null,"Jun"]
[null,null,null,null,null,null,null,null,null,null,"Jul"]
[null,null,null,null,null,null,null,null,null,null,"Aug"]
[null,null,null,null,null,null,null,null,null,null,"Sep"]
[null,null,null,null,null,null,null,null,null,null,"Oct"]
[null,null,null,null,null,null,null,null,null,null,"Nov"]
["Comments :",null,null,null,null,null,null,null,null,null,"Dec"]
["An indicated ELV value of zero in the table above means that no ammonia limit is/was set in the permit.  ",null,null,null,null,null,null,null,null,null,"Annual",{"$f":"AVERAGE(L37:L48)","v":{"$error":"#DIV/0!"}},{"$f":"MAX(M37:M48)","v":0},{"$f":"AVERAGE(N37:N48)","v":{"$error":"#DIV/0!"}},{"$f":"MAX(O37:O48)","v":0}]
[]
[null,null,null,null,null,null,null,null,null,{"$f":"+A6","v":2023},"mg/Nm3","Monthly 1/2 hourly mean","Monthly 1/2 hourly maximum","Monthly daily mean","Monthly daily maximum"]
[null,null,null,null,null,null,null,null,null,"A4","Jan"]
[null,null,null,null,null,null,null,null,null,null,"Feb"]
[null,null,null,null,null,null,null,null,null,null,"Mar"]
[null,null,null,null,null,null,null,null,null,null,"Apr"]
[null,null,null,null,null,null,null,null,null,null,"May"]
[null,null,null,null,null,null,null,null,null,null,"Jun"]
[null,null,null,null,null,null,null,null,null,null,"Jul"]
[null,null,null,null,null,null,null,null,null,null,"Aug"]
[null,null,null,null,null,null,null,null,null,null,"Sep"]
[null,null,null,null,null,null,null,null,null,null,"Oct"]
[null,null,null,null,null,null,null,null,null,null,"Nov"]
[null,null,null,null,null,null,null,null,null,null,"Dec"]
[null,null,null,null,null,null,null,null,null,null,"Annual",{"$f":"AVERAGE(L52:L63)","v":{"$error":"#DIV/0!"}},{"$f":"MAX(M52:M63)","v":0},{"$f":"AVERAGE(N52:N63)","v":{"$error":"#DIV/0!"}},{"$f":"MAX(O52:O63)","v":0}]
[]
[null,null,null,null,null,null,null,null,null,{"$f":"+A6","v":2023},"mg/Nm3","Monthly 1/2 hourly mean","Monthly 1/2 hourly maximum","Monthly daily mean","Monthly daily maximum"]
[null,null,null,null,null,null,null,null,null,"A5","Jan"]
[null,null,null,null,null,null,null,null,null,null,"Feb"]
[null,null,null,null,null,null,null,null,null,null,"Mar"]
[null,null,null,null,null,null,null,null,null,null,"Apr"]
[null,null,null,null,null,null,null,null,null,null,"May"]
[null,null,null,null,null,null,null,null,null,null,"Jun"]
[null,null,null,null,null,null,null,null,null,null,"Jul"]
[null,null,null,null,null,null,null,null,null,null,"Aug"]
[null,null,null,null,null,null,null,null,null,null,"Sep"]
[null,null,null,null,null,null,null,null,null,null,"Oct"]
[null,null,null,null,null,null,null,null,null,null,"Nov"]
[null,null,null,null,null,null,null,null,null,null,"Dec"]
[null,null,null,null,null,null,null,null,null,null,"Annual",{"$f":"AVERAGE(L67:L78)","v":{"$error":"#DIV/0!"}},{"$f":"MAX(M67:M78)","v":0},{"$f":"AVERAGE(N67:N78)","v":{"$error":"#DIV/0!"}},{"$f":"MAX(O67:O78)","v":0}]